{"text_format":"1","workbook":"xlsx","n_sheets":9,"sheets":["Extras","Disclaimers","Glossary","Population & Product Type Model","Density_Comparison_Model","Error_Adjust","Equation","Guide to Product Types","Guide to GPSF"],"not_rendered":{"charts":8,"images":10,"macros":1,"external_links":1,"defined_names":38,"comments":3,"pivot_tables":0},"unopened":[],"bounds":{"document_bytes":16777216,"sheet_cells":100000,"rows_first":2000,"rows_last":500,"rows_between":2000,"halvings":0,"cell_chars":16384,"cell_head_chars":4096},"cells_cut":0,"cells_raw":0,"read":"whole","date_system":"1900"}

{"sheet":"Extras","index":0,"n_rows":577,"n_cols":9,"rows_kept":577,"cut":false,"hidden":true,"merged":[]}
["TAZ","Neighborhood",null,"Neighborhoods","TAZs in Neighborhood","List (TAZ count)"]
[401010,{"$f":"VLOOKUP(A2,[1]Neighborhood_Pivot_Paste!$A$2:$CC$577,81,FALSE)","v":"Regis"},null,"Athmar Park",5,{"$f":"D2&\" \"&\"(\"&E2&\")\"","v":"Athmar Park (5)"}]
[401020,{"$f":"VLOOKUP(A3,[1]Neighborhood_Pivot_Paste!$A$2:$CC$577,81,FALSE)","v":"Regis"},null,"Auraria",5,{"$f":"D3&\" \"&\"(\"&E3&\")\"","v":"Auraria (5)"}]
[401030,{"$f":"VLOOKUP(A4,[1]Neighborhood_Pivot_Paste!$A$2:$CC$577,81,FALSE)","v":"Regis"},null,"Baker",6,"Baker (6)"]
[401040,{"$f":"VLOOKUP(A5,[1]Neighborhood_Pivot_Paste!$A$2:$CC$577,81,FALSE)","v":"Regis"},null,"Barnum",2,"Barnum (2)"]
[401050,{"$f":"VLOOKUP(A6,[1]Neighborhood_Pivot_Paste!$A$2:$CC$577,81,FALSE)","v":"Regis"},null,"Barnum West",2,"Barnum West (2)"]
[401060,{"$f":"VLOOKUP(A7,[1]Neighborhood_Pivot_Paste!$A$2:$CC$577,81,FALSE)","v":"Chaffee Park"},null,"Bear Valley",1,"Bear Valley (1)"]
[401070,{"$f":"VLOOKUP(A8,[1]Neighborhood_Pivot_Paste!$A$2:$CC$577,81,FALSE)","v":"Chaffee Park"},null,"Belcaro",6,"Belcaro (6)"]
[401080,{"$f":"VLOOKUP(A9,[1]Neighborhood_Pivot_Paste!$A$2:$CC$577,81,FALSE)","v":"Chaffee Park"},null,"Berkeley",6,"Berkeley (6)"]
[401090,{"$f":"VLOOKUP(A10,[1]Neighborhood_Pivot_Paste!$A$2:$CC$577,81,FALSE)","v":"Sunnyside"},null,"Capitol Hill",8,"Capitol Hill (8)"]
[401100,{"$f":"VLOOKUP(A11,[1]Neighborhood_Pivot_Paste!$A$2:$CC$577,81,FALSE)","v":"Sunnyside"},null,"CBD",64,"CBD (64)"]
[401110,{"$f":"VLOOKUP(A12,[1]Neighborhood_Pivot_Paste!$A$2:$CC$577,81,FALSE)","v":"Sunnyside"},null,"Chaffee Park",3,"Chaffee Park (3)"]
[401120,{"$f":"VLOOKUP(A13,[1]Neighborhood_Pivot_Paste!$A$2:$CC$577,81,FALSE)","v":"Berkeley"},null,"Cheesman Park",4,"Cheesman Park (4)"]
[401130,{"$f":"VLOOKUP(A14,[1]Neighborhood_Pivot_Paste!$A$2:$CC$577,81,FALSE)","v":"Berkeley"},null,"Cherry Creek",6,"Cherry Creek (6)"]
[401140,{"$f":"VLOOKUP(A15,[1]Neighborhood_Pivot_Paste!$A$2:$CC$577,81,FALSE)","v":"Berkeley"},null,"City Park",3,"City Park (3)",null,"Product Type","Average Density (units/acre)"]
[401150,{"$f":"VLOOKUP(A16,[1]Neighborhood_Pivot_Paste!$A$2:$CC$577,81,FALSE)","v":"Berkeley"},null,"City Park West",4,"City Park West (4)",null,"Large SF Lots",3.1611923398399764]
[401160,{"$f":"VLOOKUP(A17,[1]Neighborhood_Pivot_Paste!$A$2:$CC$577,81,FALSE)","v":"Berkeley"},null,"Civic Center",3,"Civic Center (3)",null,"Typical SF Lots",5.9425378251489755]
[401170,{"$f":"VLOOKUP(A18,[1]Neighborhood_Pivot_Paste!$A$2:$CC$577,81,FALSE)","v":"Berkeley"},null,"Clayton",4,"Clayton (4)",null,"Small Single Family Lots",10.731549278372162]
[401180,{"$f":"VLOOKUP(A19,[1]Neighborhood_Pivot_Paste!$A$2:$CC$577,81,FALSE)","v":"Sunnyside"},null,"Cole",2,"Cole (2)",null,"Small Multifamily",12.146368863357941]
[401190,{"$f":"VLOOKUP(A20,[1]Neighborhood_Pivot_Paste!$A$2:$CC$577,81,FALSE)","v":"Sunnyside"},null,"College View / South Platte",5,"College View / South Platte (5)",null,"3-Story Walkup",33.90359691808478]
[401200,{"$f":"VLOOKUP(A21,[1]Neighborhood_Pivot_Paste!$A$2:$CC$577,81,FALSE)","v":"Sunnyside"},null,"Congress Park",6,"Congress Park (6)",null,"Mid-Range Multifamily",75.357147546381825]
[401210,{"$f":"VLOOKUP(A22,[1]Neighborhood_Pivot_Paste!$A$2:$CC$577,81,FALSE)","v":"Highland"},null,"Cory - Merrill",4,"Cory - Merrill (4)",null,"High Density Multifamily",142.2703907386896]
[401220,{"$f":"VLOOKUP(A23,[1]Neighborhood_Pivot_Paste!$A$2:$CC$577,81,FALSE)","v":"Highland"},null,"Country Club",3,"Country Club (3)"]
[401230,{"$f":"VLOOKUP(A24,[1]Neighborhood_Pivot_Paste!$A$2:$CC$577,81,FALSE)","v":"West Highland"},null,"DIA",25,"DIA (25)"]
[401240,{"$f":"VLOOKUP(A25,[1]Neighborhood_Pivot_Paste!$A$2:$CC$577,81,FALSE)","v":"West Highland"},null,"East Colfax",3,"East Colfax (3)"]
[401250,{"$f":"VLOOKUP(A26,[1]Neighborhood_Pivot_Paste!$A$2:$CC$577,81,FALSE)","v":"West Highland"},null,"Elyria Swansea",10,"Elyria Swansea (10)"]
[401260,{"$f":"VLOOKUP(A27,[1]Neighborhood_Pivot_Paste!$A$2:$CC$577,81,FALSE)","v":"West Highland"},null,"Five Points",39,"Five Points (39)"]
[401270,{"$f":"VLOOKUP(A28,[1]Neighborhood_Pivot_Paste!$A$2:$CC$577,81,FALSE)","v":"Highland"},null,"Fort Logan",5,"Fort Logan (5)"]
[401280,{"$f":"VLOOKUP(A29,[1]Neighborhood_Pivot_Paste!$A$2:$CC$577,81,FALSE)","v":"Highland"},null,"Gateway / Green Valley Ranch",18,"Gateway / Green Valley Ranch (18)"]
[401290,{"$f":"VLOOKUP(A30,[1]Neighborhood_Pivot_Paste!$A$2:$CC$577,81,FALSE)","v":"Highland"},null,"Globeville",7,"Globeville (7)"]
[401300,{"$f":"VLOOKUP(A31,[1]Neighborhood_Pivot_Paste!$A$2:$CC$577,81,FALSE)","v":"Highland"},null,"Goldsmith",2,"Goldsmith (2)"]
[401310,{"$f":"VLOOKUP(A32,[1]Neighborhood_Pivot_Paste!$A$2:$CC$577,81,FALSE)","v":"Jefferson Park"},null,"Hale",5,"Hale (5)"]
[401320,{"$f":"VLOOKUP(A33,[1]Neighborhood_Pivot_Paste!$A$2:$CC$577,81,FALSE)","v":"Sloan Lake"},null,"Hampden",14,"Hampden (14)"]
[401330,{"$f":"VLOOKUP(A34,[1]Neighborhood_Pivot_Paste!$A$2:$CC$577,81,FALSE)","v":"Sloan Lake"},null,"Hampden South",14,"Hampden South (14)"]
[401340,{"$f":"VLOOKUP(A35,[1]Neighborhood_Pivot_Paste!$A$2:$CC$577,81,FALSE)","v":"Sloan Lake"},null,"Harvey Park",4,"Harvey Park (4)"]
[401360,{"$f":"VLOOKUP(A36,[1]Neighborhood_Pivot_Paste!$A$2:$CC$577,81,FALSE)","v":"Jefferson Park"},null,"Harvey Park South",6,"Harvey Park South (6)"]
[401370,{"$f":"VLOOKUP(A37,[1]Neighborhood_Pivot_Paste!$A$2:$CC$577,81,FALSE)","v":"Jefferson Park"},null,"Highland",6,"Highland (6)"]
[401380,{"$f":"VLOOKUP(A38,[1]Neighborhood_Pivot_Paste!$A$2:$CC$577,81,FALSE)","v":"Jefferson Park"},null,"Hilltop",6,"Hilltop (6)",null,"Custom"]
[401390,{"$f":"VLOOKUP(A39,[1]Neighborhood_Pivot_Paste!$A$2:$CC$577,81,FALSE)","v":"Sloan Lake"},null,"Indian Creek",1,"Indian Creek (1)"]
[401400,{"$f":"VLOOKUP(A40,[1]Neighborhood_Pivot_Paste!$A$2:$CC$577,81,FALSE)","v":"Sloan Lake"},null,"Jefferson Park",4,"Jefferson Park (4)"]
[402010,{"$f":"VLOOKUP(A41,[1]Neighborhood_Pivot_Paste!$A$2:$CC$577,81,FALSE)","v":"Globeville"},null,"Kennedy",1,"Kennedy (1)"]
[402020,{"$f":"VLOOKUP(A42,[1]Neighborhood_Pivot_Paste!$A$2:$CC$577,81,FALSE)","v":"Globeville"},null,"Lincoln Park",10,"Lincoln Park (10)"]
[402030,{"$f":"VLOOKUP(A43,[1]Neighborhood_Pivot_Paste!$A$2:$CC$577,81,FALSE)","v":"Globeville"},null,"Lowry Field",8,"Lowry Field (8)"]
[402040,{"$f":"VLOOKUP(A44,[1]Neighborhood_Pivot_Paste!$A$2:$CC$577,81,FALSE)","v":"Elyria Swansea"},null,"Mar Lee",4,"Mar Lee (4)"]
[402050,{"$f":"VLOOKUP(A45,[1]Neighborhood_Pivot_Paste!$A$2:$CC$577,81,FALSE)","v":"Elyria Swansea"},null,"Marston",4,"Marston (4)"]
[402060,{"$f":"VLOOKUP(A46,[1]Neighborhood_Pivot_Paste!$A$2:$CC$577,81,FALSE)","v":"Elyria Swansea"},null,"Montbello",9,"Montbello (9)"]
[402070,{"$f":"VLOOKUP(A47,[1]Neighborhood_Pivot_Paste!$A$2:$CC$577,81,FALSE)","v":"Elyria Swansea"},null,"North Capitol Hill",4,"North Capitol Hill (4)"]
[402080,{"$f":"VLOOKUP(A48,[1]Neighborhood_Pivot_Paste!$A$2:$CC$577,81,FALSE)","v":"Elyria Swansea"},null,"North Park Hill",19,"North Park Hill (19)"]
[402090,{"$f":"VLOOKUP(A49,[1]Neighborhood_Pivot_Paste!$A$2:$CC$577,81,FALSE)","v":"Elyria Swansea"},null,"Northeast Park Hill",4,"Northeast Park Hill (4)"]
[402100,{"$f":"VLOOKUP(A50,[1]Neighborhood_Pivot_Paste!$A$2:$CC$577,81,FALSE)","v":"Elyria Swansea"},null,"Overland",15,"Overland (15)"]
[402110,{"$f":"VLOOKUP(A51,[1]Neighborhood_Pivot_Paste!$A$2:$CC$577,81,FALSE)","v":"Elyria Swansea"},null,"Platt Park",5,"Platt Park (5)"]
[402120,{"$f":"VLOOKUP(A52,[1]Neighborhood_Pivot_Paste!$A$2:$CC$577,81,FALSE)","v":"Elyria Swansea"},null,"Regis",4,"Regis (4)"]
[402130,{"$f":"VLOOKUP(A53,[1]Neighborhood_Pivot_Paste!$A$2:$CC$577,81,FALSE)","v":"Elyria Swansea"},null,"Rosedale",5,"Rosedale (5)"]
[402140,{"$f":"VLOOKUP(A54,[1]Neighborhood_Pivot_Paste!$A$2:$CC$577,81,FALSE)","v":"Globeville"},null,"Ruby Hill",3,"Ruby Hill (3)"]
[402150,{"$f":"VLOOKUP(A55,[1]Neighborhood_Pivot_Paste!$A$2:$CC$577,81,FALSE)","v":"Globeville"},null,"Skyland",6,"Skyland (6)"]
[402160,{"$f":"VLOOKUP(A56,[1]Neighborhood_Pivot_Paste!$A$2:$CC$577,81,FALSE)","v":"Globeville"},null,"Sloan Lake",3,"Sloan Lake (3)"]
[402170,{"$f":"VLOOKUP(A57,[1]Neighborhood_Pivot_Paste!$A$2:$CC$577,81,FALSE)","v":"Globeville"},null,"South Park Hill",5,"South Park Hill (5)"]
[402180,{"$f":"VLOOKUP(A58,[1]Neighborhood_Pivot_Paste!$A$2:$CC$577,81,FALSE)","v":"Five Points"},null,"Southmoor Park",7,"Southmoor Park (7)"]
[402190,{"$f":"VLOOKUP(A59,[1]Neighborhood_Pivot_Paste!$A$2:$CC$577,81,FALSE)","v":"Five Points"},null,"Speer",4,"Speer (4)"]
[402200,{"$f":"VLOOKUP(A60,[1]Neighborhood_Pivot_Paste!$A$2:$CC$577,81,FALSE)","v":"Cole"},null,"Stapleton",8,"Stapleton (8)"]
[402210,{"$f":"VLOOKUP(A61,[1]Neighborhood_Pivot_Paste!$A$2:$CC$577,81,FALSE)","v":"Clayton"},null,"Sun Valley",26,"Sun Valley (26)"]
[402220,{"$f":"VLOOKUP(A62,[1]Neighborhood_Pivot_Paste!$A$2:$CC$577,81,FALSE)","v":"Clayton"},null,"Sunnyside",4,"Sunnyside (4)"]
[402230,{"$f":"VLOOKUP(A63,[1]Neighborhood_Pivot_Paste!$A$2:$CC$577,81,FALSE)","v":"Clayton"},null,"Union Station",6,"Union Station (6)"]
[402240,{"$f":"VLOOKUP(A64,[1]Neighborhood_Pivot_Paste!$A$2:$CC$577,81,FALSE)","v":"Clayton"},null,"University",38,"University (38)"]
[402250,{"$f":"VLOOKUP(A65,[1]Neighborhood_Pivot_Paste!$A$2:$CC$577,81,FALSE)","v":"Cole"},null,"University Hills",5,"University Hills (5)"]
[402260,{"$f":"VLOOKUP(A66,[1]Neighborhood_Pivot_Paste!$A$2:$CC$577,81,FALSE)","v":"Five Points"},null,"University Park",7,"University Park (7)"]
[402270,{"$f":"VLOOKUP(A67,[1]Neighborhood_Pivot_Paste!$A$2:$CC$577,81,FALSE)","v":"Five Points"},null,"Valverde",4,{"$f":"D67&\" \"&\"(\"&E67&\")\"","v":"Valverde (4)"}]
[402280,{"$f":"VLOOKUP(A68,[1]Neighborhood_Pivot_Paste!$A$2:$CC$577,81,FALSE)","v":"Five Points"},null,"Villa Park",5,"Villa Park (5)"]
[402290,{"$f":"VLOOKUP(A69,[1]Neighborhood_Pivot_Paste!$A$2:$CC$577,81,FALSE)","v":"Five Points"},null,"Virginia Village",2,"Virginia Village (2)"]
[402300,{"$f":"VLOOKUP(A70,[1]Neighborhood_Pivot_Paste!$A$2:$CC$577,81,FALSE)","v":"Five Points"},null,"Washington Park",8,"Washington Park (8)"]
[402310,{"$f":"VLOOKUP(A71,[1]Neighborhood_Pivot_Paste!$A$2:$CC$577,81,FALSE)","v":"Five Points"},null,"Washington Park West",5,"Washington Park West (5)"]
[402320,{"$f":"VLOOKUP(A72,[1]Neighborhood_Pivot_Paste!$A$2:$CC$577,81,FALSE)","v":"Five Points"},null,"Washington Virginia Vale",5,"Washington Virginia Vale (5)"]
[402330,{"$f":"VLOOKUP(A73,[1]Neighborhood_Pivot_Paste!$A$2:$CC$577,81,FALSE)","v":"Five Points"},null,"Wellshire",6,"Wellshire (6)"]
[402340,{"$f":"VLOOKUP(A74,[1]Neighborhood_Pivot_Paste!$A$2:$CC$577,81,FALSE)","v":"Whittier"},null,"West Colfax",2,"West Colfax (2)"]
[402350,{"$f":"VLOOKUP(A75,[1]Neighborhood_Pivot_Paste!$A$2:$CC$577,81,FALSE)","v":"Skyland"},null,"West Highland",5,"West Highland (5)"]
[402360,{"$f":"VLOOKUP(A76,[1]Neighborhood_Pivot_Paste!$A$2:$CC$577,81,FALSE)","v":"Skyland"},null,"Westwood",4,"Westwood (4)"]
[402370,{"$f":"VLOOKUP(A77,[1]Neighborhood_Pivot_Paste!$A$2:$CC$577,81,FALSE)","v":"Skyland"},null,"Whittier",4,"Whittier (4)"]
[402380,{"$f":"VLOOKUP(A78,[1]Neighborhood_Pivot_Paste!$A$2:$CC$577,81,FALSE)","v":"Whittier"},null,"Windsor",2,"Windsor (2)"]
[402390,{"$f":"VLOOKUP(A79,[1]Neighborhood_Pivot_Paste!$A$2:$CC$577,81,FALSE)","v":"Five Points"},null,null,7," (7)"]
[402400,{"$f":"VLOOKUP(A80,[1]Neighborhood_Pivot_Paste!$A$2:$CC$577,81,FALSE)","v":"Five Points"}]
[402410,{"$f":"VLOOKUP(A81,[1]Neighborhood_Pivot_Paste!$A$2:$CC$577,81,FALSE)","v":"Five Points"}]
[402420,{"$f":"VLOOKUP(A82,[1]Neighborhood_Pivot_Paste!$A$2:$CC$577,81,FALSE)","v":"Five Points"}]
[402430,{"$f":"VLOOKUP(A83,[1]Neighborhood_Pivot_Paste!$A$2:$CC$577,81,FALSE)","v":"Five Points"}]
[402440,{"$f":"VLOOKUP(A84,[1]Neighborhood_Pivot_Paste!$A$2:$CC$577,81,FALSE)","v":"Five Points"}]
[402450,{"$f":"VLOOKUP(A85,[1]Neighborhood_Pivot_Paste!$A$2:$CC$577,81,FALSE)","v":"Five Points"}]
[402460,{"$f":"VLOOKUP(A86,[1]Neighborhood_Pivot_Paste!$A$2:$CC$577,81,FALSE)","v":"North Capitol Hill"}]
[402470,{"$f":"VLOOKUP(A87,[1]Neighborhood_Pivot_Paste!$A$2:$CC$577,81,FALSE)","v":"Five Points"}]
[402480,{"$f":"VLOOKUP(A88,[1]Neighborhood_Pivot_Paste!$A$2:$CC$577,81,FALSE)","v":"City Park West"}]
[402490,{"$f":"VLOOKUP(A89,[1]Neighborhood_Pivot_Paste!$A$2:$CC$577,81,FALSE)","v":"City Park"}]
[402500,{"$f":"VLOOKUP(A90,[1]Neighborhood_Pivot_Paste!$A$2:$CC$577,81,FALSE)","v":"City Park"}]
[402510,{"$f":"VLOOKUP(A91,[1]Neighborhood_Pivot_Paste!$A$2:$CC$577,81,FALSE)","v":"City Park"}]
[402520,{"$f":"VLOOKUP(A92,[1]Neighborhood_Pivot_Paste!$A$2:$CC$577,81,FALSE)","v":"City Park West"}]
[402530,{"$f":"VLOOKUP(A93,[1]Neighborhood_Pivot_Paste!$A$2:$CC$577,81,FALSE)","v":"City Park West"}]
[402540,{"$f":"VLOOKUP(A94,[1]Neighborhood_Pivot_Paste!$A$2:$CC$577,81,FALSE)","v":"City Park West"}]
[402550,{"$f":"VLOOKUP(A95,[1]Neighborhood_Pivot_Paste!$A$2:$CC$577,81,FALSE)","v":"North Capitol Hill"}]
[403010,{"$f":"VLOOKUP(A96,[1]Neighborhood_Pivot_Paste!$A$2:$CC$577,81,FALSE)","v":"Northeast Park Hill"}]
[403020,{"$f":"VLOOKUP(A97,[1]Neighborhood_Pivot_Paste!$A$2:$CC$577,81,FALSE)","v":"Northeast Park Hill"}]
[403030,{"$f":"VLOOKUP(A98,[1]Neighborhood_Pivot_Paste!$A$2:$CC$577,81,FALSE)","v":"Northeast Park Hill"}]
[403040,{"$f":"VLOOKUP(A99,[1]Neighborhood_Pivot_Paste!$A$2:$CC$577,81,FALSE)","v":"Northeast Park Hill"}]
[403050,{"$f":"VLOOKUP(A100,[1]Neighborhood_Pivot_Paste!$A$2:$CC$577,81,FALSE)","v":"Northeast Park Hill"}]
[403060,{"$f":"VLOOKUP(A101,[1]Neighborhood_Pivot_Paste!$A$2:$CC$577,81,FALSE)","v":"Northeast Park Hill"}]
[403070,{"$f":"VLOOKUP(A102,[1]Neighborhood_Pivot_Paste!$A$2:$CC$577,81,FALSE)","v":"Northeast Park Hill"}]
[403080,{"$f":"VLOOKUP(A103,[1]Neighborhood_Pivot_Paste!$A$2:$CC$577,81,FALSE)","v":"Northeast Park Hill"}]
[403090,{"$f":"VLOOKUP(A104,[1]Neighborhood_Pivot_Paste!$A$2:$CC$577,81,FALSE)","v":"Northeast Park Hill"}]
[403100,{"$f":"VLOOKUP(A105,[1]Neighborhood_Pivot_Paste!$A$2:$CC$577,81,FALSE)","v":"Northeast Park Hill"}]
[403110,{"$f":"VLOOKUP(A106,[1]Neighborhood_Pivot_Paste!$A$2:$CC$577,81,FALSE)","v":"Northeast Park Hill"}]
[403120,{"$f":"VLOOKUP(A107,[1]Neighborhood_Pivot_Paste!$A$2:$CC$577,81,FALSE)","v":"Northeast Park Hill"}]
[403130,{"$f":"VLOOKUP(A108,[1]Neighborhood_Pivot_Paste!$A$2:$CC$577,81,FALSE)","v":"Northeast Park Hill"}]
[403140,{"$f":"VLOOKUP(A109,[1]Neighborhood_Pivot_Paste!$A$2:$CC$577,81,FALSE)","v":"Northeast Park Hill"}]
[403150,{"$f":"VLOOKUP(A110,[1]Neighborhood_Pivot_Paste!$A$2:$CC$577,81,FALSE)","v":"Northeast Park Hill"}]
[403160,{"$f":"VLOOKUP(A111,[1]Neighborhood_Pivot_Paste!$A$2:$CC$577,81,FALSE)","v":"North Park Hill"}]
[403170,{"$f":"VLOOKUP(A112,[1]Neighborhood_Pivot_Paste!$A$2:$CC$577,81,FALSE)","v":"North Park Hill"}]
[403180,{"$f":"VLOOKUP(A113,[1]Neighborhood_Pivot_Paste!$A$2:$CC$577,81,FALSE)","v":"North Park Hill"}]
[403190,{"$f":"VLOOKUP(A114,[1]Neighborhood_Pivot_Paste!$A$2:$CC$577,81,FALSE)","v":"South Park Hill"}]
[403200,{"$f":"VLOOKUP(A115,[1]Neighborhood_Pivot_Paste!$A$2:$CC$577,81,FALSE)","v":"South Park Hill"}]
[403210,{"$f":"VLOOKUP(A116,[1]Neighborhood_Pivot_Paste!$A$2:$CC$577,81,FALSE)","v":"North Park Hill"}]
[403220,{"$f":"VLOOKUP(A117,[1]Neighborhood_Pivot_Paste!$A$2:$CC$577,81,FALSE)","v":"South Park Hill"}]
[403230,{"$f":"VLOOKUP(A118,[1]Neighborhood_Pivot_Paste!$A$2:$CC$577,81,FALSE)","v":"South Park Hill"}]
[403240,{"$f":"VLOOKUP(A119,[1]Neighborhood_Pivot_Paste!$A$2:$CC$577,81,FALSE)","v":"South Park Hill"}]
[403250,{"$f":"VLOOKUP(A120,[1]Neighborhood_Pivot_Paste!$A$2:$CC$577,81,FALSE)","v":"South Park Hill"}]
[403260,{"$f":"VLOOKUP(A121,[1]Neighborhood_Pivot_Paste!$A$2:$CC$577,81,FALSE)","v":"South Park Hill"}]
[404020,{"$f":"VLOOKUP(A122,[1]Neighborhood_Pivot_Paste!$A$2:$CC$577,81,FALSE)","v":"Stapleton"}]
[404030,{"$f":"VLOOKUP(A123,[1]Neighborhood_Pivot_Paste!$A$2:$CC$577,81,FALSE)","v":"Stapleton"}]
[404040,{"$f":"VLOOKUP(A124,[1]Neighborhood_Pivot_Paste!$A$2:$CC$577,81,FALSE)","v":"Stapleton"}]
[404050,{"$f":"VLOOKUP(A125,[1]Neighborhood_Pivot_Paste!$A$2:$CC$577,81,FALSE)","v":"Stapleton"}]
[404060,{"$f":"VLOOKUP(A126,[1]Neighborhood_Pivot_Paste!$A$2:$CC$577,81,FALSE)","v":"Stapleton"}]
[404070,{"$f":"VLOOKUP(A127,[1]Neighborhood_Pivot_Paste!$A$2:$CC$577,81,FALSE)","v":"Stapleton"}]
[404080,{"$f":"VLOOKUP(A128,[1]Neighborhood_Pivot_Paste!$A$2:$CC$577,81,FALSE)","v":"Montbello"}]
[404090,{"$f":"VLOOKUP(A129,[1]Neighborhood_Pivot_Paste!$A$2:$CC$577,81,FALSE)","v":"Montbello"}]
[404100,{"$f":"VLOOKUP(A130,[1]Neighborhood_Pivot_Paste!$A$2:$CC$577,81,FALSE)","v":"Montbello"}]
[404110,{"$f":"VLOOKUP(A131,[1]Neighborhood_Pivot_Paste!$A$2:$CC$577,81,FALSE)","v":"Gateway / Green Valley Ranch"}]
[404120,{"$f":"VLOOKUP(A132,[1]Neighborhood_Pivot_Paste!$A$2:$CC$577,81,FALSE)","v":"Gateway / Green Valley Ranch"}]
[404130,{"$f":"VLOOKUP(A133,[1]Neighborhood_Pivot_Paste!$A$2:$CC$577,81,FALSE)","v":"Gateway / Green Valley Ranch"}]
[404140,{"$f":"VLOOKUP(A134,[1]Neighborhood_Pivot_Paste!$A$2:$CC$577,81,FALSE)","v":"Gateway / Green Valley Ranch"}]
[404150,{"$f":"VLOOKUP(A135,[1]Neighborhood_Pivot_Paste!$A$2:$CC$577,81,FALSE)","v":"Gateway / Green Valley Ranch"}]
[404160,{"$f":"VLOOKUP(A136,[1]Neighborhood_Pivot_Paste!$A$2:$CC$577,81,FALSE)","v":"Gateway / Green Valley Ranch"}]
[404170,{"$f":"VLOOKUP(A137,[1]Neighborhood_Pivot_Paste!$A$2:$CC$577,81,FALSE)","v":"Gateway / Green Valley Ranch"}]
[404180,{"$f":"VLOOKUP(A138,[1]Neighborhood_Pivot_Paste!$A$2:$CC$577,81,FALSE)","v":"Gateway / Green Valley Ranch"}]
[404190,{"$f":"VLOOKUP(A139,[1]Neighborhood_Pivot_Paste!$A$2:$CC$577,81,FALSE)","v":"Gateway / Green Valley Ranch"}]
[404200,{"$f":"VLOOKUP(A140,[1]Neighborhood_Pivot_Paste!$A$2:$CC$577,81,FALSE)","v":"Gateway / Green Valley Ranch"}]
[404210,{"$f":"VLOOKUP(A141,[1]Neighborhood_Pivot_Paste!$A$2:$CC$577,81,FALSE)","v":"Gateway / Green Valley Ranch"}]
[404220,{"$f":"VLOOKUP(A142,[1]Neighborhood_Pivot_Paste!$A$2:$CC$577,81,FALSE)","v":"Gateway / Green Valley Ranch"}]
[404230,{"$f":"VLOOKUP(A143,[1]Neighborhood_Pivot_Paste!$A$2:$CC$577,81,FALSE)","v":"Gateway / Green Valley Ranch"}]
[404240,{"$f":"VLOOKUP(A144,[1]Neighborhood_Pivot_Paste!$A$2:$CC$577,81,FALSE)","v":"Gateway / Green Valley Ranch"}]
[404250,{"$f":"VLOOKUP(A145,[1]Neighborhood_Pivot_Paste!$A$2:$CC$577,81,FALSE)","v":"Gateway / Green Valley Ranch"}]
[404260,{"$f":"VLOOKUP(A146,[1]Neighborhood_Pivot_Paste!$A$2:$CC$577,81,FALSE)","v":"Montbello"}]
[404270,{"$f":"VLOOKUP(A147,[1]Neighborhood_Pivot_Paste!$A$2:$CC$577,81,FALSE)","v":"Montbello"}]
[404280,{"$f":"VLOOKUP(A148,[1]Neighborhood_Pivot_Paste!$A$2:$CC$577,81,FALSE)","v":"Montbello"}]
[404290,{"$f":"VLOOKUP(A149,[1]Neighborhood_Pivot_Paste!$A$2:$CC$577,81,FALSE)","v":"Montbello"}]
[404300,{"$f":"VLOOKUP(A150,[1]Neighborhood_Pivot_Paste!$A$2:$CC$577,81,FALSE)","v":"Stapleton"}]
[404310,{"$f":"VLOOKUP(A151,[1]Neighborhood_Pivot_Paste!$A$2:$CC$577,81,FALSE)","v":"Stapleton"}]
[404320,{"$f":"VLOOKUP(A152,[1]Neighborhood_Pivot_Paste!$A$2:$CC$577,81,FALSE)","v":"Stapleton"}]
[404330,{"$f":"VLOOKUP(A153,[1]Neighborhood_Pivot_Paste!$A$2:$CC$577,81,FALSE)","v":"Stapleton"}]
[404340,{"$f":"VLOOKUP(A154,[1]Neighborhood_Pivot_Paste!$A$2:$CC$577,81,FALSE)","v":"Stapleton"}]
[404350,{"$f":"VLOOKUP(A155,[1]Neighborhood_Pivot_Paste!$A$2:$CC$577,81,FALSE)","v":"Stapleton"}]
[404360,{"$f":"VLOOKUP(A156,[1]Neighborhood_Pivot_Paste!$A$2:$CC$577,81,FALSE)","v":"Stapleton"}]
[404370,{"$f":"VLOOKUP(A157,[1]Neighborhood_Pivot_Paste!$A$2:$CC$577,81,FALSE)","v":"Stapleton"}]
[404380,{"$f":"VLOOKUP(A158,[1]Neighborhood_Pivot_Paste!$A$2:$CC$577,81,FALSE)","v":"Stapleton"}]
[404390,{"$f":"VLOOKUP(A159,[1]Neighborhood_Pivot_Paste!$A$2:$CC$577,81,FALSE)","v":"Stapleton"}]
[404420,{"$f":"VLOOKUP(A160,[1]Neighborhood_Pivot_Paste!$A$2:$CC$577,81,FALSE)","v":"Stapleton"}]
[404430,{"$f":"VLOOKUP(A161,[1]Neighborhood_Pivot_Paste!$A$2:$CC$577,81,FALSE)","v":"Stapleton"}]
[404440,{"$f":"VLOOKUP(A162,[1]Neighborhood_Pivot_Paste!$A$2:$CC$577,81,FALSE)","v":"Stapleton"}]
[404450,{"$f":"VLOOKUP(A163,[1]Neighborhood_Pivot_Paste!$A$2:$CC$577,81,FALSE)","v":"Stapleton"}]
[404460,{"$f":"VLOOKUP(A164,[1]Neighborhood_Pivot_Paste!$A$2:$CC$577,81,FALSE)","v":"Stapleton"}]
[404470,{"$f":"VLOOKUP(A165,[1]Neighborhood_Pivot_Paste!$A$2:$CC$577,81,FALSE)","v":"Stapleton"}]
[404480,{"$f":"VLOOKUP(A166,[1]Neighborhood_Pivot_Paste!$A$2:$CC$577,81,FALSE)","v":"Stapleton"}]
[405010,{"$f":"VLOOKUP(A167,[1]Neighborhood_Pivot_Paste!$A$2:$CC$577,81,FALSE)","v":"West Colfax"}]
[405020,{"$f":"VLOOKUP(A168,[1]Neighborhood_Pivot_Paste!$A$2:$CC$577,81,FALSE)","v":"West Colfax"}]
[405030,{"$f":"VLOOKUP(A169,[1]Neighborhood_Pivot_Paste!$A$2:$CC$577,81,FALSE)","v":"West Colfax"}]
[405040,{"$f":"VLOOKUP(A170,[1]Neighborhood_Pivot_Paste!$A$2:$CC$577,81,FALSE)","v":"Sun Valley"}]
[405050,{"$f":"VLOOKUP(A171,[1]Neighborhood_Pivot_Paste!$A$2:$CC$577,81,FALSE)","v":"Lincoln Park"}]
[405060,{"$f":"VLOOKUP(A172,[1]Neighborhood_Pivot_Paste!$A$2:$CC$577,81,FALSE)","v":"Lincoln Park"}]
[405070,{"$f":"VLOOKUP(A173,[1]Neighborhood_Pivot_Paste!$A$2:$CC$577,81,FALSE)","v":"Lincoln Park"}]
[405080,{"$f":"VLOOKUP(A174,[1]Neighborhood_Pivot_Paste!$A$2:$CC$577,81,FALSE)","v":"Lincoln Park"}]
[405090,{"$f":"VLOOKUP(A175,[1]Neighborhood_Pivot_Paste!$A$2:$CC$577,81,FALSE)","v":"Lincoln Park"}]
[405100,{"$f":"VLOOKUP(A176,[1]Neighborhood_Pivot_Paste!$A$2:$CC$577,81,FALSE)","v":"Lincoln Park"}]
[405110,{"$f":"VLOOKUP(A177,[1]Neighborhood_Pivot_Paste!$A$2:$CC$577,81,FALSE)","v":"Lincoln Park"}]
[405120,{"$f":"VLOOKUP(A178,[1]Neighborhood_Pivot_Paste!$A$2:$CC$577,81,FALSE)","v":"Lincoln Park"}]
[405130,{"$f":"VLOOKUP(A179,[1]Neighborhood_Pivot_Paste!$A$2:$CC$577,81,FALSE)","v":"Lincoln Park"}]
[405140,{"$f":"VLOOKUP(A180,[1]Neighborhood_Pivot_Paste!$A$2:$CC$577,81,FALSE)","v":"Sun Valley"}]
[405150,{"$f":"VLOOKUP(A181,[1]Neighborhood_Pivot_Paste!$A$2:$CC$577,81,FALSE)","v":"Sun Valley"}]
[405160,{"$f":"VLOOKUP(A182,[1]Neighborhood_Pivot_Paste!$A$2:$CC$577,81,FALSE)","v":"Sun Valley"}]
[405170,{"$f":"VLOOKUP(A183,[1]Neighborhood_Pivot_Paste!$A$2:$CC$577,81,FALSE)","v":"West Colfax"}]
[405180,{"$f":"VLOOKUP(A184,[1]Neighborhood_Pivot_Paste!$A$2:$CC$577,81,FALSE)","v":"Villa Park"}]
[405190,{"$f":"VLOOKUP(A185,[1]Neighborhood_Pivot_Paste!$A$2:$CC$577,81,FALSE)","v":"West Colfax"}]
[405200,{"$f":"VLOOKUP(A186,[1]Neighborhood_Pivot_Paste!$A$2:$CC$577,81,FALSE)","v":"Villa Park"}]
[405210,{"$f":"VLOOKUP(A187,[1]Neighborhood_Pivot_Paste!$A$2:$CC$577,81,FALSE)","v":"Barnum West"}]
[405220,{"$f":"VLOOKUP(A188,[1]Neighborhood_Pivot_Paste!$A$2:$CC$577,81,FALSE)","v":"Barnum"}]
[405230,{"$f":"VLOOKUP(A189,[1]Neighborhood_Pivot_Paste!$A$2:$CC$577,81,FALSE)","v":"Valverde"}]
[405240,{"$f":"VLOOKUP(A190,[1]Neighborhood_Pivot_Paste!$A$2:$CC$577,81,FALSE)","v":"Valverde"}]
[405250,{"$f":"VLOOKUP(A191,[1]Neighborhood_Pivot_Paste!$A$2:$CC$577,81,FALSE)","v":"Baker"}]
[405260,{"$f":"VLOOKUP(A192,[1]Neighborhood_Pivot_Paste!$A$2:$CC$577,81,FALSE)","v":"Lincoln Park"}]
[405270,{"$f":"VLOOKUP(A193,[1]Neighborhood_Pivot_Paste!$A$2:$CC$577,81,FALSE)","v":"Baker"}]
[405280,{"$f":"VLOOKUP(A194,[1]Neighborhood_Pivot_Paste!$A$2:$CC$577,81,FALSE)","v":"Baker"}]
[405290,{"$f":"VLOOKUP(A195,[1]Neighborhood_Pivot_Paste!$A$2:$CC$577,81,FALSE)","v":"Valverde"}]
[405300,{"$f":"VLOOKUP(A196,[1]Neighborhood_Pivot_Paste!$A$2:$CC$577,81,FALSE)","v":"Valverde"}]
[405310,{"$f":"VLOOKUP(A197,[1]Neighborhood_Pivot_Paste!$A$2:$CC$577,81,FALSE)","v":"Valverde"}]
[405320,{"$f":"VLOOKUP(A198,[1]Neighborhood_Pivot_Paste!$A$2:$CC$577,81,FALSE)","v":"Barnum"}]
[405330,{"$f":"VLOOKUP(A199,[1]Neighborhood_Pivot_Paste!$A$2:$CC$577,81,FALSE)","v":"Barnum West"}]
[405340,{"$f":"VLOOKUP(A200,[1]Neighborhood_Pivot_Paste!$A$2:$CC$577,81,FALSE)","v":"Westwood"}]
[405350,{"$f":"VLOOKUP(A201,[1]Neighborhood_Pivot_Paste!$A$2:$CC$577,81,FALSE)","v":"Westwood"}]
[405360,{"$f":"VLOOKUP(A202,[1]Neighborhood_Pivot_Paste!$A$2:$CC$577,81,FALSE)","v":"Athmar Park"}]
[405370,{"$f":"VLOOKUP(A203,[1]Neighborhood_Pivot_Paste!$A$2:$CC$577,81,FALSE)","v":"Athmar Park"}]
[405380,{"$f":"VLOOKUP(A204,[1]Neighborhood_Pivot_Paste!$A$2:$CC$577,81,FALSE)","v":"Athmar Park"}]
[405390,{"$f":"VLOOKUP(A205,[1]Neighborhood_Pivot_Paste!$A$2:$CC$577,81,FALSE)","v":"Baker"}]
[405400,{"$f":"VLOOKUP(A206,[1]Neighborhood_Pivot_Paste!$A$2:$CC$577,81,FALSE)","v":"Baker"}]
[405410,{"$f":"VLOOKUP(A207,[1]Neighborhood_Pivot_Paste!$A$2:$CC$577,81,FALSE)","v":"Baker"}]
[405420,{"$f":"VLOOKUP(A208,[1]Neighborhood_Pivot_Paste!$A$2:$CC$577,81,FALSE)","v":"Athmar Park"}]
[405430,{"$f":"VLOOKUP(A209,[1]Neighborhood_Pivot_Paste!$A$2:$CC$577,81,FALSE)","v":"Athmar Park"}]
[405440,{"$f":"VLOOKUP(A210,[1]Neighborhood_Pivot_Paste!$A$2:$CC$577,81,FALSE)","v":"Westwood"}]
[405450,{"$f":"VLOOKUP(A211,[1]Neighborhood_Pivot_Paste!$A$2:$CC$577,81,FALSE)","v":"Westwood"}]
[406010,{"$f":"VLOOKUP(A212,[1]Neighborhood_Pivot_Paste!$A$2:$CC$577,81,FALSE)","v":"Capitol Hill"}]
[406020,{"$f":"VLOOKUP(A213,[1]Neighborhood_Pivot_Paste!$A$2:$CC$577,81,FALSE)","v":"Cheesman Park"}]
[406030,{"$f":"VLOOKUP(A214,[1]Neighborhood_Pivot_Paste!$A$2:$CC$577,81,FALSE)","v":"Cheesman Park"}]
[406040,{"$f":"VLOOKUP(A215,[1]Neighborhood_Pivot_Paste!$A$2:$CC$577,81,FALSE)","v":"Congress Park"}]
[406050,{"$f":"VLOOKUP(A216,[1]Neighborhood_Pivot_Paste!$A$2:$CC$577,81,FALSE)","v":"Congress Park"}]
[406060,{"$f":"VLOOKUP(A217,[1]Neighborhood_Pivot_Paste!$A$2:$CC$577,81,FALSE)","v":"Congress Park"}]
[406070,{"$f":"VLOOKUP(A218,[1]Neighborhood_Pivot_Paste!$A$2:$CC$577,81,FALSE)","v":"Congress Park"}]
[406080,{"$f":"VLOOKUP(A219,[1]Neighborhood_Pivot_Paste!$A$2:$CC$577,81,FALSE)","v":"Cheesman Park"}]
[406090,{"$f":"VLOOKUP(A220,[1]Neighborhood_Pivot_Paste!$A$2:$CC$577,81,FALSE)","v":"Cheesman Park"}]
[406100,{"$f":"VLOOKUP(A221,[1]Neighborhood_Pivot_Paste!$A$2:$CC$577,81,FALSE)","v":"Capitol Hill"}]
[406110,{"$f":"VLOOKUP(A222,[1]Neighborhood_Pivot_Paste!$A$2:$CC$577,81,FALSE)","v":"Capitol Hill"}]
[406120,{"$f":"VLOOKUP(A223,[1]Neighborhood_Pivot_Paste!$A$2:$CC$577,81,FALSE)","v":"Capitol Hill"}]
[406130,{"$f":"VLOOKUP(A224,[1]Neighborhood_Pivot_Paste!$A$2:$CC$577,81,FALSE)","v":"Congress Park"}]
[406140,{"$f":"VLOOKUP(A225,[1]Neighborhood_Pivot_Paste!$A$2:$CC$577,81,FALSE)","v":"Congress Park"}]
[406150,{"$f":"VLOOKUP(A226,[1]Neighborhood_Pivot_Paste!$A$2:$CC$577,81,FALSE)","v":"Cherry Creek"}]
[406160,{"$f":"VLOOKUP(A227,[1]Neighborhood_Pivot_Paste!$A$2:$CC$577,81,FALSE)","v":"Cherry Creek"}]
[406170,{"$f":"VLOOKUP(A228,[1]Neighborhood_Pivot_Paste!$A$2:$CC$577,81,FALSE)","v":"Cherry Creek"}]
[406180,{"$f":"VLOOKUP(A229,[1]Neighborhood_Pivot_Paste!$A$2:$CC$577,81,FALSE)","v":"Cherry Creek"}]
[406190,{"$f":"VLOOKUP(A230,[1]Neighborhood_Pivot_Paste!$A$2:$CC$577,81,FALSE)","v":"Country Club"}]
[406200,{"$f":"VLOOKUP(A231,[1]Neighborhood_Pivot_Paste!$A$2:$CC$577,81,FALSE)","v":"Country Club"}]
[406210,{"$f":"VLOOKUP(A232,[1]Neighborhood_Pivot_Paste!$A$2:$CC$577,81,FALSE)","v":"Speer"}]
[406220,{"$f":"VLOOKUP(A233,[1]Neighborhood_Pivot_Paste!$A$2:$CC$577,81,FALSE)","v":"Speer"}]
[406230,{"$f":"VLOOKUP(A234,[1]Neighborhood_Pivot_Paste!$A$2:$CC$577,81,FALSE)","v":"Speer"}]
[406240,{"$f":"VLOOKUP(A235,[1]Neighborhood_Pivot_Paste!$A$2:$CC$577,81,FALSE)","v":"Speer"}]
[406250,{"$f":"VLOOKUP(A236,[1]Neighborhood_Pivot_Paste!$A$2:$CC$577,81,FALSE)","v":"Speer"}]
[406260,{"$f":"VLOOKUP(A237,[1]Neighborhood_Pivot_Paste!$A$2:$CC$577,81,FALSE)","v":"Speer"}]
[406270,{"$f":"VLOOKUP(A238,[1]Neighborhood_Pivot_Paste!$A$2:$CC$577,81,FALSE)","v":"Speer"}]
[406280,{"$f":"VLOOKUP(A239,[1]Neighborhood_Pivot_Paste!$A$2:$CC$577,81,FALSE)","v":"Speer"}]
[406290,{"$f":"VLOOKUP(A240,[1]Neighborhood_Pivot_Paste!$A$2:$CC$577,81,FALSE)","v":"Country Club"}]
[406300,{"$f":"VLOOKUP(A241,[1]Neighborhood_Pivot_Paste!$A$2:$CC$577,81,FALSE)","v":"Cherry Creek"}]
[406310,{"$f":"VLOOKUP(A242,[1]Neighborhood_Pivot_Paste!$A$2:$CC$577,81,FALSE)","v":"Cherry Creek"}]
[407010,{"$f":"VLOOKUP(A243,[1]Neighborhood_Pivot_Paste!$A$2:$CC$577,81,FALSE)","v":"East Colfax"}]
[407020,{"$f":"VLOOKUP(A244,[1]Neighborhood_Pivot_Paste!$A$2:$CC$577,81,FALSE)","v":"East Colfax"}]
[407030,{"$f":"VLOOKUP(A245,[1]Neighborhood_Pivot_Paste!$A$2:$CC$577,81,FALSE)","v":"East Colfax"}]
[407040,{"$f":"VLOOKUP(A246,[1]Neighborhood_Pivot_Paste!$A$2:$CC$577,81,FALSE)","v":"Montclair"}]
[407050,{"$f":"VLOOKUP(A247,[1]Neighborhood_Pivot_Paste!$A$2:$CC$577,81,FALSE)","v":"Montclair"}]
[407060,{"$f":"VLOOKUP(A248,[1]Neighborhood_Pivot_Paste!$A$2:$CC$577,81,FALSE)","v":"Hale"}]
[407070,{"$f":"VLOOKUP(A249,[1]Neighborhood_Pivot_Paste!$A$2:$CC$577,81,FALSE)","v":"Hale"}]
[407080,{"$f":"VLOOKUP(A250,[1]Neighborhood_Pivot_Paste!$A$2:$CC$577,81,FALSE)","v":"Hale"}]
[407090,{"$f":"VLOOKUP(A251,[1]Neighborhood_Pivot_Paste!$A$2:$CC$577,81,FALSE)","v":"Hale"}]
[407100,{"$f":"VLOOKUP(A252,[1]Neighborhood_Pivot_Paste!$A$2:$CC$577,81,FALSE)","v":"Hale"}]
[407110,{"$f":"VLOOKUP(A253,[1]Neighborhood_Pivot_Paste!$A$2:$CC$577,81,FALSE)","v":"Montclair"}]
[407120,{"$f":"VLOOKUP(A254,[1]Neighborhood_Pivot_Paste!$A$2:$CC$577,81,FALSE)","v":"Montclair"}]
[407130,{"$f":"VLOOKUP(A255,[1]Neighborhood_Pivot_Paste!$A$2:$CC$577,81,FALSE)","v":"Lowry Field"}]
[407140,{"$f":"VLOOKUP(A256,[1]Neighborhood_Pivot_Paste!$A$2:$CC$577,81,FALSE)","v":"Lowry Field"}]
[407150,{"$f":"VLOOKUP(A257,[1]Neighborhood_Pivot_Paste!$A$2:$CC$577,81,FALSE)","v":"Lowry Field"}]
[407160,{"$f":"VLOOKUP(A258,[1]Neighborhood_Pivot_Paste!$A$2:$CC$577,81,FALSE)","v":"Hilltop"}]
[407170,{"$f":"VLOOKUP(A259,[1]Neighborhood_Pivot_Paste!$A$2:$CC$577,81,FALSE)","v":"Hilltop"}]
[407180,{"$f":"VLOOKUP(A260,[1]Neighborhood_Pivot_Paste!$A$2:$CC$577,81,FALSE)","v":"Hilltop"}]
[407190,{"$f":"VLOOKUP(A261,[1]Neighborhood_Pivot_Paste!$A$2:$CC$577,81,FALSE)","v":"Hilltop"}]
[407200,{"$f":"VLOOKUP(A262,[1]Neighborhood_Pivot_Paste!$A$2:$CC$577,81,FALSE)","v":"Hilltop"}]
[407210,{"$f":"VLOOKUP(A263,[1]Neighborhood_Pivot_Paste!$A$2:$CC$577,81,FALSE)","v":"Hilltop"}]
[407220,{"$f":"VLOOKUP(A264,[1]Neighborhood_Pivot_Paste!$A$2:$CC$577,81,FALSE)","v":"Lowry Field"}]
[407230,{"$f":"VLOOKUP(A265,[1]Neighborhood_Pivot_Paste!$A$2:$CC$577,81,FALSE)","v":"Lowry Field"}]
[407240,{"$f":"VLOOKUP(A266,[1]Neighborhood_Pivot_Paste!$A$2:$CC$577,81,FALSE)","v":"Lowry Field"}]
[407250,{"$f":"VLOOKUP(A267,[1]Neighborhood_Pivot_Paste!$A$2:$CC$577,81,FALSE)","v":"Lowry Field"}]
[407260,{"$f":"VLOOKUP(A268,[1]Neighborhood_Pivot_Paste!$A$2:$CC$577,81,FALSE)","v":"Windsor"}]
[407270,{"$f":"VLOOKUP(A269,[1]Neighborhood_Pivot_Paste!$A$2:$CC$577,81,FALSE)","v":"Windsor"}]
[407280,{"$f":"VLOOKUP(A270,[1]Neighborhood_Pivot_Paste!$A$2:$CC$577,81,FALSE)","v":"Windsor"}]
[407290,{"$f":"VLOOKUP(A271,[1]Neighborhood_Pivot_Paste!$A$2:$CC$577,81,FALSE)","v":"Windsor"}]
[407300,{"$f":"VLOOKUP(A272,[1]Neighborhood_Pivot_Paste!$A$2:$CC$577,81,FALSE)","v":"Windsor"}]
[407310,{"$f":"VLOOKUP(A273,[1]Neighborhood_Pivot_Paste!$A$2:$CC$577,81,FALSE)","v":"Washington Virginia Vale"}]
[407320,{"$f":"VLOOKUP(A274,[1]Neighborhood_Pivot_Paste!$A$2:$CC$577,81,FALSE)","v":"Washington Virginia Vale"}]
[407330,{"$f":"VLOOKUP(A275,[1]Neighborhood_Pivot_Paste!$A$2:$CC$577,81,FALSE)","v":"Washington Virginia Vale"}]
[407340,{"$f":"VLOOKUP(A276,[1]Neighborhood_Pivot_Paste!$A$2:$CC$577,81,FALSE)","v":"Washington Virginia Vale"}]
[407350,{"$f":"VLOOKUP(A277,[1]Neighborhood_Pivot_Paste!$A$2:$CC$577,81,FALSE)","v":"Washington Virginia Vale"}]
[407360,{"$f":"VLOOKUP(A278,[1]Neighborhood_Pivot_Paste!$A$2:$CC$577,81,FALSE)","v":"Washington Virginia Vale"}]
[407370,{"$f":"VLOOKUP(A279,[1]Neighborhood_Pivot_Paste!$A$2:$CC$577,81,FALSE)","v":"Windsor"}]
[407390,{"$f":"VLOOKUP(A280,[1]Neighborhood_Pivot_Paste!$A$2:$CC$577,81,FALSE)","v":"Indian Creek"}]
[408010,{"$f":"VLOOKUP(A281,[1]Neighborhood_Pivot_Paste!$A$2:$CC$577,81,FALSE)","v":"Mar Lee"}]
[408020,{"$f":"VLOOKUP(A282,[1]Neighborhood_Pivot_Paste!$A$2:$CC$577,81,FALSE)","v":"Mar Lee"}]
[408030,{"$f":"VLOOKUP(A283,[1]Neighborhood_Pivot_Paste!$A$2:$CC$577,81,FALSE)","v":"Ruby Hill"}]
[408040,{"$f":"VLOOKUP(A284,[1]Neighborhood_Pivot_Paste!$A$2:$CC$577,81,FALSE)","v":"Ruby Hill"}]
[408050,{"$f":"VLOOKUP(A285,[1]Neighborhood_Pivot_Paste!$A$2:$CC$577,81,FALSE)","v":"Ruby Hill"}]
[408060,{"$f":"VLOOKUP(A286,[1]Neighborhood_Pivot_Paste!$A$2:$CC$577,81,FALSE)","v":"Ruby Hill"}]
[408070,{"$f":"VLOOKUP(A287,[1]Neighborhood_Pivot_Paste!$A$2:$CC$577,81,FALSE)","v":"Ruby Hill"}]
[408080,{"$f":"VLOOKUP(A288,[1]Neighborhood_Pivot_Paste!$A$2:$CC$577,81,FALSE)","v":"Ruby Hill"}]
[408090,{"$f":"VLOOKUP(A289,[1]Neighborhood_Pivot_Paste!$A$2:$CC$577,81,FALSE)","v":"Mar Lee"}]
[408100,{"$f":"VLOOKUP(A290,[1]Neighborhood_Pivot_Paste!$A$2:$CC$577,81,FALSE)","v":"Mar Lee"}]
[408120,{"$f":"VLOOKUP(A291,[1]Neighborhood_Pivot_Paste!$A$2:$CC$577,81,FALSE)","v":"Harvey Park"}]
[408130,{"$f":"VLOOKUP(A292,[1]Neighborhood_Pivot_Paste!$A$2:$CC$577,81,FALSE)","v":"Harvey Park"}]
[408140,{"$f":"VLOOKUP(A293,[1]Neighborhood_Pivot_Paste!$A$2:$CC$577,81,FALSE)","v":"College View / South Platte"}]
[408150,{"$f":"VLOOKUP(A294,[1]Neighborhood_Pivot_Paste!$A$2:$CC$577,81,FALSE)","v":"College View / South Platte"}]
[408160,{"$f":"VLOOKUP(A295,[1]Neighborhood_Pivot_Paste!$A$2:$CC$577,81,FALSE)","v":"College View / South Platte"}]
[408170,{"$f":"VLOOKUP(A296,[1]Neighborhood_Pivot_Paste!$A$2:$CC$577,81,FALSE)","v":"College View / South Platte"}]
[408180,{"$f":"VLOOKUP(A297,[1]Neighborhood_Pivot_Paste!$A$2:$CC$577,81,FALSE)","v":"Harvey Park"}]
[408190,{"$f":"VLOOKUP(A298,[1]Neighborhood_Pivot_Paste!$A$2:$CC$577,81,FALSE)","v":"Harvey Park"}]
[408210,{"$f":"VLOOKUP(A299,[1]Neighborhood_Pivot_Paste!$A$2:$CC$577,81,FALSE)","v":"Bear Valley"}]
[408220,{"$f":"VLOOKUP(A300,[1]Neighborhood_Pivot_Paste!$A$2:$CC$577,81,FALSE)","v":"Harvey Park South"}]
[408230,{"$f":"VLOOKUP(A301,[1]Neighborhood_Pivot_Paste!$A$2:$CC$577,81,FALSE)","v":"Harvey Park South"}]
[408240,{"$f":"VLOOKUP(A302,[1]Neighborhood_Pivot_Paste!$A$2:$CC$577,81,FALSE)","v":"Harvey Park South"}]
[408250,{"$f":"VLOOKUP(A303,[1]Neighborhood_Pivot_Paste!$A$2:$CC$577,81,FALSE)","v":"College View / South Platte"}]
[408260,{"$f":"VLOOKUP(A304,[1]Neighborhood_Pivot_Paste!$A$2:$CC$577,81,FALSE)","v":"Harvey Park South"}]
[408270,{"$f":"VLOOKUP(A305,[1]Neighborhood_Pivot_Paste!$A$2:$CC$577,81,FALSE)","v":"Harvey Park South"}]
[408280,{"$f":"VLOOKUP(A306,[1]Neighborhood_Pivot_Paste!$A$2:$CC$577,81,FALSE)","v":"Harvey Park South"}]
[408290,{"$f":"VLOOKUP(A307,[1]Neighborhood_Pivot_Paste!$A$2:$CC$577,81,FALSE)","v":"Fort Logan"}]
[408310,{"$f":"VLOOKUP(A308,[1]Neighborhood_Pivot_Paste!$A$2:$CC$577,81,FALSE)","v":"Fort Logan"}]
[408320,{"$f":"VLOOKUP(A309,[1]Neighborhood_Pivot_Paste!$A$2:$CC$577,81,FALSE)","v":"Fort Logan"}]
[408330,{"$f":"VLOOKUP(A310,[1]Neighborhood_Pivot_Paste!$A$2:$CC$577,81,FALSE)","v":"Fort Logan"}]
[408340,{"$f":"VLOOKUP(A311,[1]Neighborhood_Pivot_Paste!$A$2:$CC$577,81,FALSE)","v":"Fort Logan"}]
[408350,{"$f":"VLOOKUP(A312,[1]Neighborhood_Pivot_Paste!$A$2:$CC$577,81,FALSE)","v":"Marston"}]
[408360,{"$f":"VLOOKUP(A313,[1]Neighborhood_Pivot_Paste!$A$2:$CC$577,81,FALSE)","v":"Marston"}]
[408370,{"$f":"VLOOKUP(A314,[1]Neighborhood_Pivot_Paste!$A$2:$CC$577,81,FALSE)","v":"Marston"}]
[408380,{"$f":"VLOOKUP(A315,[1]Neighborhood_Pivot_Paste!$A$2:$CC$577,81,FALSE)","v":"Marston"}]
[409010,{"$f":"VLOOKUP(A316,[1]Neighborhood_Pivot_Paste!$A$2:$CC$577,81,FALSE)","v":"Washington Park West"}]
[409020,{"$f":"VLOOKUP(A317,[1]Neighborhood_Pivot_Paste!$A$2:$CC$577,81,FALSE)","v":"Washington Park West"}]
[409030,{"$f":"VLOOKUP(A318,[1]Neighborhood_Pivot_Paste!$A$2:$CC$577,81,FALSE)","v":"Washington Park"}]
[409040,{"$f":"VLOOKUP(A319,[1]Neighborhood_Pivot_Paste!$A$2:$CC$577,81,FALSE)","v":"Belcaro"}]
[409050,{"$f":"VLOOKUP(A320,[1]Neighborhood_Pivot_Paste!$A$2:$CC$577,81,FALSE)","v":"Belcaro"}]
[409060,{"$f":"VLOOKUP(A321,[1]Neighborhood_Pivot_Paste!$A$2:$CC$577,81,FALSE)","v":"Belcaro"}]
[409070,{"$f":"VLOOKUP(A322,[1]Neighborhood_Pivot_Paste!$A$2:$CC$577,81,FALSE)","v":"Belcaro"}]
[409080,{"$f":"VLOOKUP(A323,[1]Neighborhood_Pivot_Paste!$A$2:$CC$577,81,FALSE)","v":"Washington Park"}]
[409090,{"$f":"VLOOKUP(A324,[1]Neighborhood_Pivot_Paste!$A$2:$CC$577,81,FALSE)","v":"Washington Park"}]
[409100,{"$f":"VLOOKUP(A325,[1]Neighborhood_Pivot_Paste!$A$2:$CC$577,81,FALSE)","v":"Washington Park West"}]
[409110,{"$f":"VLOOKUP(A326,[1]Neighborhood_Pivot_Paste!$A$2:$CC$577,81,FALSE)","v":"Washington Park West"}]
[409120,{"$f":"VLOOKUP(A327,[1]Neighborhood_Pivot_Paste!$A$2:$CC$577,81,FALSE)","v":"Washington Park West"}]
[409130,{"$f":"VLOOKUP(A328,[1]Neighborhood_Pivot_Paste!$A$2:$CC$577,81,FALSE)","v":"Overland"}]
[409140,{"$f":"VLOOKUP(A329,[1]Neighborhood_Pivot_Paste!$A$2:$CC$577,81,FALSE)","v":"Platt Park"}]
[409150,{"$f":"VLOOKUP(A330,[1]Neighborhood_Pivot_Paste!$A$2:$CC$577,81,FALSE)","v":"Platt Park"}]
[409160,{"$f":"VLOOKUP(A331,[1]Neighborhood_Pivot_Paste!$A$2:$CC$577,81,FALSE)","v":"Platt Park"}]
[409170,{"$f":"VLOOKUP(A332,[1]Neighborhood_Pivot_Paste!$A$2:$CC$577,81,FALSE)","v":"University"}]
[409180,{"$f":"VLOOKUP(A333,[1]Neighborhood_Pivot_Paste!$A$2:$CC$577,81,FALSE)","v":"Washington Park"}]
[409190,{"$f":"VLOOKUP(A334,[1]Neighborhood_Pivot_Paste!$A$2:$CC$577,81,FALSE)","v":"Washington Park"}]
[409200,{"$f":"VLOOKUP(A335,[1]Neighborhood_Pivot_Paste!$A$2:$CC$577,81,FALSE)","v":"Belcaro"}]
[409210,{"$f":"VLOOKUP(A336,[1]Neighborhood_Pivot_Paste!$A$2:$CC$577,81,FALSE)","v":"Belcaro"}]
[409220,{"$f":"VLOOKUP(A337,[1]Neighborhood_Pivot_Paste!$A$2:$CC$577,81,FALSE)","v":"Cory - Merrill"}]
[409230,{"$f":"VLOOKUP(A338,[1]Neighborhood_Pivot_Paste!$A$2:$CC$577,81,FALSE)","v":"Cory - Merrill"}]
[409240,{"$f":"VLOOKUP(A339,[1]Neighborhood_Pivot_Paste!$A$2:$CC$577,81,FALSE)","v":"Cory - Merrill"}]
[409250,{"$f":"VLOOKUP(A340,[1]Neighborhood_Pivot_Paste!$A$2:$CC$577,81,FALSE)","v":"Cory - Merrill"}]
[409260,{"$f":"VLOOKUP(A341,[1]Neighborhood_Pivot_Paste!$A$2:$CC$577,81,FALSE)","v":"University Park"}]
[409270,{"$f":"VLOOKUP(A342,[1]Neighborhood_Pivot_Paste!$A$2:$CC$577,81,FALSE)","v":"University Park"}]
[409280,{"$f":"VLOOKUP(A343,[1]Neighborhood_Pivot_Paste!$A$2:$CC$577,81,FALSE)","v":"University"}]
[409290,{"$f":"VLOOKUP(A344,[1]Neighborhood_Pivot_Paste!$A$2:$CC$577,81,FALSE)","v":"University Park"}]
[409300,{"$f":"VLOOKUP(A345,[1]Neighborhood_Pivot_Paste!$A$2:$CC$577,81,FALSE)","v":"University Park"}]
[409310,{"$f":"VLOOKUP(A346,[1]Neighborhood_Pivot_Paste!$A$2:$CC$577,81,FALSE)","v":"University"}]
[409320,{"$f":"VLOOKUP(A347,[1]Neighborhood_Pivot_Paste!$A$2:$CC$577,81,FALSE)","v":"University"}]
[409330,{"$f":"VLOOKUP(A348,[1]Neighborhood_Pivot_Paste!$A$2:$CC$577,81,FALSE)","v":"Rosedale"}]
[409340,{"$f":"VLOOKUP(A349,[1]Neighborhood_Pivot_Paste!$A$2:$CC$577,81,FALSE)","v":"Platt Park"}]
[409350,{"$f":"VLOOKUP(A350,[1]Neighborhood_Pivot_Paste!$A$2:$CC$577,81,FALSE)","v":"Overland"}]
[409360,{"$f":"VLOOKUP(A351,[1]Neighborhood_Pivot_Paste!$A$2:$CC$577,81,FALSE)","v":"Overland"}]
[409370,{"$f":"VLOOKUP(A352,[1]Neighborhood_Pivot_Paste!$A$2:$CC$577,81,FALSE)","v":"Overland"}]
[409380,{"$f":"VLOOKUP(A353,[1]Neighborhood_Pivot_Paste!$A$2:$CC$577,81,FALSE)","v":"Overland"}]
[409390,{"$f":"VLOOKUP(A354,[1]Neighborhood_Pivot_Paste!$A$2:$CC$577,81,FALSE)","v":"Rosedale"}]
[409400,{"$f":"VLOOKUP(A355,[1]Neighborhood_Pivot_Paste!$A$2:$CC$577,81,FALSE)","v":"Rosedale"}]
[409410,{"$f":"VLOOKUP(A356,[1]Neighborhood_Pivot_Paste!$A$2:$CC$577,81,FALSE)","v":"University"}]
[409420,{"$f":"VLOOKUP(A357,[1]Neighborhood_Pivot_Paste!$A$2:$CC$577,81,FALSE)","v":"Wellshire"}]
[409430,{"$f":"VLOOKUP(A358,[1]Neighborhood_Pivot_Paste!$A$2:$CC$577,81,FALSE)","v":"Wellshire"}]
[410010,{"$f":"VLOOKUP(A359,[1]Neighborhood_Pivot_Paste!$A$2:$CC$577,81,FALSE)","v":"Virginia Village"}]
[410020,{"$f":"VLOOKUP(A360,[1]Neighborhood_Pivot_Paste!$A$2:$CC$577,81,FALSE)","v":"Virginia Village"}]
[410030,{"$f":"VLOOKUP(A361,[1]Neighborhood_Pivot_Paste!$A$2:$CC$577,81,FALSE)","v":"Virginia Village"}]
[410040,{"$f":"VLOOKUP(A362,[1]Neighborhood_Pivot_Paste!$A$2:$CC$577,81,FALSE)","v":"Virginia Village"}]
[410060,{"$f":"VLOOKUP(A363,[1]Neighborhood_Pivot_Paste!$A$2:$CC$577,81,FALSE)","v":"Virginia Village"}]
[410070,{"$f":"VLOOKUP(A364,[1]Neighborhood_Pivot_Paste!$A$2:$CC$577,81,FALSE)","v":"Virginia Village"}]
[410080,{"$f":"VLOOKUP(A365,[1]Neighborhood_Pivot_Paste!$A$2:$CC$577,81,FALSE)","v":"Virginia Village"}]
[410090,{"$f":"VLOOKUP(A366,[1]Neighborhood_Pivot_Paste!$A$2:$CC$577,81,FALSE)","v":"Virginia Village"}]
[410100,{"$f":"VLOOKUP(A367,[1]Neighborhood_Pivot_Paste!$A$2:$CC$577,81,FALSE)","v":"University Hills"}]
[410110,{"$f":"VLOOKUP(A368,[1]Neighborhood_Pivot_Paste!$A$2:$CC$577,81,FALSE)","v":"University Hills"}]
[410120,{"$f":"VLOOKUP(A369,[1]Neighborhood_Pivot_Paste!$A$2:$CC$577,81,FALSE)","v":"University Hills"}]
[410130,{"$f":"VLOOKUP(A370,[1]Neighborhood_Pivot_Paste!$A$2:$CC$577,81,FALSE)","v":"Goldsmith"}]
[410140,{"$f":"VLOOKUP(A371,[1]Neighborhood_Pivot_Paste!$A$2:$CC$577,81,FALSE)","v":"Goldsmith"}]
[410150,{"$f":"VLOOKUP(A372,[1]Neighborhood_Pivot_Paste!$A$2:$CC$577,81,FALSE)","v":"University Hills"}]
[410160,{"$f":"VLOOKUP(A373,[1]Neighborhood_Pivot_Paste!$A$2:$CC$577,81,FALSE)","v":"University Hills"}]
[410170,{"$f":"VLOOKUP(A374,[1]Neighborhood_Pivot_Paste!$A$2:$CC$577,81,FALSE)","v":"University Hills"}]
[410180,{"$f":"VLOOKUP(A375,[1]Neighborhood_Pivot_Paste!$A$2:$CC$577,81,FALSE)","v":"University Hills"}]
[410200,{"$f":"VLOOKUP(A376,[1]Neighborhood_Pivot_Paste!$A$2:$CC$577,81,FALSE)","v":"Hampden"}]
[410210,{"$f":"VLOOKUP(A377,[1]Neighborhood_Pivot_Paste!$A$2:$CC$577,81,FALSE)","v":"Hampden"}]
[410220,{"$f":"VLOOKUP(A378,[1]Neighborhood_Pivot_Paste!$A$2:$CC$577,81,FALSE)","v":"Hampden"}]
[410230,{"$f":"VLOOKUP(A379,[1]Neighborhood_Pivot_Paste!$A$2:$CC$577,81,FALSE)","v":"Hampden"}]
[410240,{"$f":"VLOOKUP(A380,[1]Neighborhood_Pivot_Paste!$A$2:$CC$577,81,FALSE)","v":"Hampden"}]
[410250,{"$f":"VLOOKUP(A381,[1]Neighborhood_Pivot_Paste!$A$2:$CC$577,81,FALSE)","v":"Hampden"}]
[410260,{"$f":"VLOOKUP(A382,[1]Neighborhood_Pivot_Paste!$A$2:$CC$577,81,FALSE)","v":"Hampden"}]
[410270,{"$f":"VLOOKUP(A383,[1]Neighborhood_Pivot_Paste!$A$2:$CC$577,81,FALSE)","v":"Hampden"}]
[410280,{"$f":"VLOOKUP(A384,[1]Neighborhood_Pivot_Paste!$A$2:$CC$577,81,FALSE)","v":"Hampden"}]
[410290,{"$f":"VLOOKUP(A385,[1]Neighborhood_Pivot_Paste!$A$2:$CC$577,81,FALSE)","v":"Hampden"}]
[410300,{"$f":"VLOOKUP(A386,[1]Neighborhood_Pivot_Paste!$A$2:$CC$577,81,FALSE)","v":"Hampden"}]
[410310,{"$f":"VLOOKUP(A387,[1]Neighborhood_Pivot_Paste!$A$2:$CC$577,81,FALSE)","v":"Kennedy"}]
[411010,{"$f":"VLOOKUP(A388,[1]Neighborhood_Pivot_Paste!$A$2:$CC$577,81,FALSE)","v":"Southmoor Park"}]
[411020,{"$f":"VLOOKUP(A389,[1]Neighborhood_Pivot_Paste!$A$2:$CC$577,81,FALSE)","v":"Southmoor Park"}]
[411030,{"$f":"VLOOKUP(A390,[1]Neighborhood_Pivot_Paste!$A$2:$CC$577,81,FALSE)","v":"Hampden South"}]
[411040,{"$f":"VLOOKUP(A391,[1]Neighborhood_Pivot_Paste!$A$2:$CC$577,81,FALSE)","v":"Hampden South"}]
[411050,{"$f":"VLOOKUP(A392,[1]Neighborhood_Pivot_Paste!$A$2:$CC$577,81,FALSE)","v":"Hampden South"}]
[411060,{"$f":"VLOOKUP(A393,[1]Neighborhood_Pivot_Paste!$A$2:$CC$577,81,FALSE)","v":"Hampden South"}]
[411070,{"$f":"VLOOKUP(A394,[1]Neighborhood_Pivot_Paste!$A$2:$CC$577,81,FALSE)","v":"Hampden South"}]
[411080,{"$f":"VLOOKUP(A395,[1]Neighborhood_Pivot_Paste!$A$2:$CC$577,81,FALSE)","v":"Hampden South"}]
[411090,{"$f":"VLOOKUP(A396,[1]Neighborhood_Pivot_Paste!$A$2:$CC$577,81,FALSE)","v":"Hampden South"}]
[411100,{"$f":"VLOOKUP(A397,[1]Neighborhood_Pivot_Paste!$A$2:$CC$577,81,FALSE)","v":"Hampden South"}]
[411110,{"$f":"VLOOKUP(A398,[1]Neighborhood_Pivot_Paste!$A$2:$CC$577,81,FALSE)","v":"Hampden South"}]
[411120,{"$f":"VLOOKUP(A399,[1]Neighborhood_Pivot_Paste!$A$2:$CC$577,81,FALSE)","v":"Southmoor Park"}]
[411130,{"$f":"VLOOKUP(A400,[1]Neighborhood_Pivot_Paste!$A$2:$CC$577,81,FALSE)","v":"Hampden South"}]
[411140,{"$f":"VLOOKUP(A401,[1]Neighborhood_Pivot_Paste!$A$2:$CC$577,81,FALSE)","v":"Hampden South"}]
[411150,{"$f":"VLOOKUP(A402,[1]Neighborhood_Pivot_Paste!$A$2:$CC$577,81,FALSE)","v":"Hampden South"}]
[411160,{"$f":"VLOOKUP(A403,[1]Neighborhood_Pivot_Paste!$A$2:$CC$577,81,FALSE)","v":"Hampden South"}]
[411170,{"$f":"VLOOKUP(A404,[1]Neighborhood_Pivot_Paste!$A$2:$CC$577,81,FALSE)","v":"Hampden South"}]
[411190,{"$f":"VLOOKUP(A405,[1]Neighborhood_Pivot_Paste!$A$2:$CC$577,81,FALSE)","v":"Southmoor Park"}]
[412010,{"$f":"VLOOKUP(A406,[1]Neighborhood_Pivot_Paste!$A$2:$CC$577,81,FALSE)","v":"Five Points"}]
[412021,{"$f":"VLOOKUP(A407,[1]Neighborhood_Pivot_Paste!$A$2:$CC$577,81,FALSE)","v":"Five Points"}]
[412022,{"$f":"VLOOKUP(A408,[1]Neighborhood_Pivot_Paste!$A$2:$CC$577,81,FALSE)","v":"Five Points"}]
[412031,{"$f":"VLOOKUP(A409,[1]Neighborhood_Pivot_Paste!$A$2:$CC$577,81,FALSE)","v":"Five Points"}]
[412032,{"$f":"VLOOKUP(A410,[1]Neighborhood_Pivot_Paste!$A$2:$CC$577,81,FALSE)","v":"Five Points"}]
[412033,{"$f":"VLOOKUP(A411,[1]Neighborhood_Pivot_Paste!$A$2:$CC$577,81,FALSE)","v":"Five Points"}]
[412034,{"$f":"VLOOKUP(A412,[1]Neighborhood_Pivot_Paste!$A$2:$CC$577,81,FALSE)","v":"Five Points"}]
[412035,{"$f":"VLOOKUP(A413,[1]Neighborhood_Pivot_Paste!$A$2:$CC$577,81,FALSE)","v":"Five Points"}]
[412036,{"$f":"VLOOKUP(A414,[1]Neighborhood_Pivot_Paste!$A$2:$CC$577,81,FALSE)","v":"Five Points"}]
[412037,{"$f":"VLOOKUP(A415,[1]Neighborhood_Pivot_Paste!$A$2:$CC$577,81,FALSE)","v":"Five Points"}]
[412038,{"$f":"VLOOKUP(A416,[1]Neighborhood_Pivot_Paste!$A$2:$CC$577,81,FALSE)","v":"Five Points"}]
[412039,{"$f":"VLOOKUP(A417,[1]Neighborhood_Pivot_Paste!$A$2:$CC$577,81,FALSE)","v":"Five Points"}]
[412041,{"$f":"VLOOKUP(A418,[1]Neighborhood_Pivot_Paste!$A$2:$CC$577,81,FALSE)","v":"Five Points"}]
[412042,{"$f":"VLOOKUP(A419,[1]Neighborhood_Pivot_Paste!$A$2:$CC$577,81,FALSE)","v":"Five Points"}]
[412043,{"$f":"VLOOKUP(A420,[1]Neighborhood_Pivot_Paste!$A$2:$CC$577,81,FALSE)","v":"Five Points"}]
[412044,{"$f":"VLOOKUP(A421,[1]Neighborhood_Pivot_Paste!$A$2:$CC$577,81,FALSE)","v":"Five Points"}]
[412045,{"$f":"VLOOKUP(A422,[1]Neighborhood_Pivot_Paste!$A$2:$CC$577,81,FALSE)","v":"Five Points"}]
[412046,{"$f":"VLOOKUP(A423,[1]Neighborhood_Pivot_Paste!$A$2:$CC$577,81,FALSE)","v":"Five Points"}]
[412047,{"$f":"VLOOKUP(A424,[1]Neighborhood_Pivot_Paste!$A$2:$CC$577,81,FALSE)","v":"Five Points"}]
[412048,{"$f":"VLOOKUP(A425,[1]Neighborhood_Pivot_Paste!$A$2:$CC$577,81,FALSE)","v":"Five Points"}]
[412049,{"$f":"VLOOKUP(A426,[1]Neighborhood_Pivot_Paste!$A$2:$CC$577,81,FALSE)","v":"Five Points"}]
[412051,{"$f":"VLOOKUP(A427,[1]Neighborhood_Pivot_Paste!$A$2:$CC$577,81,FALSE)","v":"CBD"}]
[412052,{"$f":"VLOOKUP(A428,[1]Neighborhood_Pivot_Paste!$A$2:$CC$577,81,FALSE)","v":"CBD"}]
[412053,{"$f":"VLOOKUP(A429,[1]Neighborhood_Pivot_Paste!$A$2:$CC$577,81,FALSE)","v":"CBD"}]
[412054,{"$f":"VLOOKUP(A430,[1]Neighborhood_Pivot_Paste!$A$2:$CC$577,81,FALSE)","v":"CBD"}]
[412055,{"$f":"VLOOKUP(A431,[1]Neighborhood_Pivot_Paste!$A$2:$CC$577,81,FALSE)","v":"CBD"}]
[412056,{"$f":"VLOOKUP(A432,[1]Neighborhood_Pivot_Paste!$A$2:$CC$577,81,FALSE)","v":"CBD"}]
[412061,{"$f":"VLOOKUP(A433,[1]Neighborhood_Pivot_Paste!$A$2:$CC$577,81,FALSE)","v":"CBD"}]
[412062,{"$f":"VLOOKUP(A434,[1]Neighborhood_Pivot_Paste!$A$2:$CC$577,81,FALSE)","v":"CBD"}]
[412063,{"$f":"VLOOKUP(A435,[1]Neighborhood_Pivot_Paste!$A$2:$CC$577,81,FALSE)","v":"CBD"}]
[412064,{"$f":"VLOOKUP(A436,[1]Neighborhood_Pivot_Paste!$A$2:$CC$577,81,FALSE)","v":"CBD"}]
[412065,{"$f":"VLOOKUP(A437,[1]Neighborhood_Pivot_Paste!$A$2:$CC$577,81,FALSE)","v":"CBD"}]
[412066,{"$f":"VLOOKUP(A438,[1]Neighborhood_Pivot_Paste!$A$2:$CC$577,81,FALSE)","v":"CBD"}]
[412071,{"$f":"VLOOKUP(A439,[1]Neighborhood_Pivot_Paste!$A$2:$CC$577,81,FALSE)","v":"Union Station"}]
[412072,{"$f":"VLOOKUP(A440,[1]Neighborhood_Pivot_Paste!$A$2:$CC$577,81,FALSE)","v":"Union Station"}]
[412073,{"$f":"VLOOKUP(A441,[1]Neighborhood_Pivot_Paste!$A$2:$CC$577,81,FALSE)","v":"Union Station"}]
[412074,{"$f":"VLOOKUP(A442,[1]Neighborhood_Pivot_Paste!$A$2:$CC$577,81,FALSE)","v":"Union Station"}]
[412075,{"$f":"VLOOKUP(A443,[1]Neighborhood_Pivot_Paste!$A$2:$CC$577,81,FALSE)","v":"Union Station"}]
[412076,{"$f":"VLOOKUP(A444,[1]Neighborhood_Pivot_Paste!$A$2:$CC$577,81,FALSE)","v":"Union Station"}]
[412081,{"$f":"VLOOKUP(A445,[1]Neighborhood_Pivot_Paste!$A$2:$CC$577,81,FALSE)","v":"Union Station"}]
[412082,{"$f":"VLOOKUP(A446,[1]Neighborhood_Pivot_Paste!$A$2:$CC$577,81,FALSE)","v":"Union Station"}]
[412083,{"$f":"VLOOKUP(A447,[1]Neighborhood_Pivot_Paste!$A$2:$CC$577,81,FALSE)","v":"Union Station"}]
[412084,{"$f":"VLOOKUP(A448,[1]Neighborhood_Pivot_Paste!$A$2:$CC$577,81,FALSE)","v":"Union Station"}]
[412085,{"$f":"VLOOKUP(A449,[1]Neighborhood_Pivot_Paste!$A$2:$CC$577,81,FALSE)","v":"Union Station"}]
[412090,{"$f":"VLOOKUP(A450,[1]Neighborhood_Pivot_Paste!$A$2:$CC$577,81,FALSE)","v":"Union Station"}]
[412100,{"$f":"VLOOKUP(A451,[1]Neighborhood_Pivot_Paste!$A$2:$CC$577,81,FALSE)","v":"Union Station"}]
[412110,{"$f":"VLOOKUP(A452,[1]Neighborhood_Pivot_Paste!$A$2:$CC$577,81,FALSE)","v":"Union Station"}]
[412121,{"$f":"VLOOKUP(A453,[1]Neighborhood_Pivot_Paste!$A$2:$CC$577,81,FALSE)","v":"Union Station"}]
[412122,{"$f":"VLOOKUP(A454,[1]Neighborhood_Pivot_Paste!$A$2:$CC$577,81,FALSE)","v":"Union Station"}]
[412123,{"$f":"VLOOKUP(A455,[1]Neighborhood_Pivot_Paste!$A$2:$CC$577,81,FALSE)","v":"Union Station"}]
[412124,{"$f":"VLOOKUP(A456,[1]Neighborhood_Pivot_Paste!$A$2:$CC$577,81,FALSE)","v":"Union Station"}]
[412125,{"$f":"VLOOKUP(A457,[1]Neighborhood_Pivot_Paste!$A$2:$CC$577,81,FALSE)","v":"Union Station"}]
[412141,{"$f":"VLOOKUP(A458,[1]Neighborhood_Pivot_Paste!$A$2:$CC$577,81,FALSE)","v":"CBD"}]
[412142,{"$f":"VLOOKUP(A459,[1]Neighborhood_Pivot_Paste!$A$2:$CC$577,81,FALSE)","v":"CBD"}]
[412143,{"$f":"VLOOKUP(A460,[1]Neighborhood_Pivot_Paste!$A$2:$CC$577,81,FALSE)","v":"CBD"}]
[412144,{"$f":"VLOOKUP(A461,[1]Neighborhood_Pivot_Paste!$A$2:$CC$577,81,FALSE)","v":"CBD"}]
[412145,{"$f":"VLOOKUP(A462,[1]Neighborhood_Pivot_Paste!$A$2:$CC$577,81,FALSE)","v":"CBD"}]
[412146,{"$f":"VLOOKUP(A463,[1]Neighborhood_Pivot_Paste!$A$2:$CC$577,81,FALSE)","v":"CBD"}]
[412151,{"$f":"VLOOKUP(A464,[1]Neighborhood_Pivot_Paste!$A$2:$CC$577,81,FALSE)","v":"CBD"}]
[412152,{"$f":"VLOOKUP(A465,[1]Neighborhood_Pivot_Paste!$A$2:$CC$577,81,FALSE)","v":"CBD"}]
[412153,{"$f":"VLOOKUP(A466,[1]Neighborhood_Pivot_Paste!$A$2:$CC$577,81,FALSE)","v":"CBD"}]
[412154,{"$f":"VLOOKUP(A467,[1]Neighborhood_Pivot_Paste!$A$2:$CC$577,81,FALSE)","v":"CBD"}]
[412155,{"$f":"VLOOKUP(A468,[1]Neighborhood_Pivot_Paste!$A$2:$CC$577,81,FALSE)","v":"CBD"}]
[412156,{"$f":"VLOOKUP(A469,[1]Neighborhood_Pivot_Paste!$A$2:$CC$577,81,FALSE)","v":"CBD"}]
[412161,{"$f":"VLOOKUP(A470,[1]Neighborhood_Pivot_Paste!$A$2:$CC$577,81,FALSE)","v":"CBD"}]
[412162,{"$f":"VLOOKUP(A471,[1]Neighborhood_Pivot_Paste!$A$2:$CC$577,81,FALSE)","v":"CBD"}]
[412163,{"$f":"VLOOKUP(A472,[1]Neighborhood_Pivot_Paste!$A$2:$CC$577,81,FALSE)","v":"CBD"}]
[412164,{"$f":"VLOOKUP(A473,[1]Neighborhood_Pivot_Paste!$A$2:$CC$577,81,FALSE)","v":"CBD"}]
[412165,{"$f":"VLOOKUP(A474,[1]Neighborhood_Pivot_Paste!$A$2:$CC$577,81,FALSE)","v":"CBD"}]
[412166,{"$f":"VLOOKUP(A475,[1]Neighborhood_Pivot_Paste!$A$2:$CC$577,81,FALSE)","v":"CBD"}]
[412167,{"$f":"VLOOKUP(A476,[1]Neighborhood_Pivot_Paste!$A$2:$CC$577,81,FALSE)","v":"CBD"}]
[412168,{"$f":"VLOOKUP(A477,[1]Neighborhood_Pivot_Paste!$A$2:$CC$577,81,FALSE)","v":"CBD"}]
[412169,{"$f":"VLOOKUP(A478,[1]Neighborhood_Pivot_Paste!$A$2:$CC$577,81,FALSE)","v":"CBD"}]
[412171,{"$f":"VLOOKUP(A479,[1]Neighborhood_Pivot_Paste!$A$2:$CC$577,81,FALSE)","v":"North Capitol Hill"}]
[412172,{"$f":"VLOOKUP(A480,[1]Neighborhood_Pivot_Paste!$A$2:$CC$577,81,FALSE)","v":"North Capitol Hill"}]
[412173,{"$f":"VLOOKUP(A481,[1]Neighborhood_Pivot_Paste!$A$2:$CC$577,81,FALSE)","v":"North Capitol Hill"}]
[412174,{"$f":"VLOOKUP(A482,[1]Neighborhood_Pivot_Paste!$A$2:$CC$577,81,FALSE)","v":"North Capitol Hill"}]
[412175,{"$f":"VLOOKUP(A483,[1]Neighborhood_Pivot_Paste!$A$2:$CC$577,81,FALSE)","v":"North Capitol Hill"}]
[412176,{"$f":"VLOOKUP(A484,[1]Neighborhood_Pivot_Paste!$A$2:$CC$577,81,FALSE)","v":"North Capitol Hill"}]
[412180,{"$f":"VLOOKUP(A485,[1]Neighborhood_Pivot_Paste!$A$2:$CC$577,81,FALSE)","v":"North Capitol Hill"}]
[412190,{"$f":"VLOOKUP(A486,[1]Neighborhood_Pivot_Paste!$A$2:$CC$577,81,FALSE)","v":"North Capitol Hill"}]
[412201,{"$f":"VLOOKUP(A487,[1]Neighborhood_Pivot_Paste!$A$2:$CC$577,81,FALSE)","v":"North Capitol Hill"}]
[412202,{"$f":"VLOOKUP(A488,[1]Neighborhood_Pivot_Paste!$A$2:$CC$577,81,FALSE)","v":"North Capitol Hill"}]
[412203,{"$f":"VLOOKUP(A489,[1]Neighborhood_Pivot_Paste!$A$2:$CC$577,81,FALSE)","v":"North Capitol Hill"}]
[412204,{"$f":"VLOOKUP(A490,[1]Neighborhood_Pivot_Paste!$A$2:$CC$577,81,FALSE)","v":"North Capitol Hill"}]
[412205,{"$f":"VLOOKUP(A491,[1]Neighborhood_Pivot_Paste!$A$2:$CC$577,81,FALSE)","v":"North Capitol Hill"}]
[412206,{"$f":"VLOOKUP(A492,[1]Neighborhood_Pivot_Paste!$A$2:$CC$577,81,FALSE)","v":"North Capitol Hill"}]
[412207,{"$f":"VLOOKUP(A493,[1]Neighborhood_Pivot_Paste!$A$2:$CC$577,81,FALSE)","v":"North Capitol Hill"}]
[412208,{"$f":"VLOOKUP(A494,[1]Neighborhood_Pivot_Paste!$A$2:$CC$577,81,FALSE)","v":"North Capitol Hill"}]
[412209,{"$f":"VLOOKUP(A495,[1]Neighborhood_Pivot_Paste!$A$2:$CC$577,81,FALSE)","v":"North Capitol Hill"}]
[412211,{"$f":"VLOOKUP(A496,[1]Neighborhood_Pivot_Paste!$A$2:$CC$577,81,FALSE)","v":"CBD"}]
[412212,{"$f":"VLOOKUP(A497,[1]Neighborhood_Pivot_Paste!$A$2:$CC$577,81,FALSE)","v":"CBD"}]
[412213,{"$f":"VLOOKUP(A498,[1]Neighborhood_Pivot_Paste!$A$2:$CC$577,81,FALSE)","v":"CBD"}]
[412214,{"$f":"VLOOKUP(A499,[1]Neighborhood_Pivot_Paste!$A$2:$CC$577,81,FALSE)","v":"CBD"}]
[412215,{"$f":"VLOOKUP(A500,[1]Neighborhood_Pivot_Paste!$A$2:$CC$577,81,FALSE)","v":"CBD"}]
[412221,{"$f":"VLOOKUP(A501,[1]Neighborhood_Pivot_Paste!$A$2:$CC$577,81,FALSE)","v":"CBD"}]
[412222,{"$f":"VLOOKUP(A502,[1]Neighborhood_Pivot_Paste!$A$2:$CC$577,81,FALSE)","v":"CBD"}]
[412223,{"$f":"VLOOKUP(A503,[1]Neighborhood_Pivot_Paste!$A$2:$CC$577,81,FALSE)","v":"CBD"}]
[412224,{"$f":"VLOOKUP(A504,[1]Neighborhood_Pivot_Paste!$A$2:$CC$577,81,FALSE)","v":"CBD"}]
[412231,{"$f":"VLOOKUP(A505,[1]Neighborhood_Pivot_Paste!$A$2:$CC$577,81,FALSE)","v":"CBD"}]
[412232,{"$f":"VLOOKUP(A506,[1]Neighborhood_Pivot_Paste!$A$2:$CC$577,81,FALSE)","v":"CBD"}]
[412233,{"$f":"VLOOKUP(A507,[1]Neighborhood_Pivot_Paste!$A$2:$CC$577,81,FALSE)","v":"CBD"}]
[412234,{"$f":"VLOOKUP(A508,[1]Neighborhood_Pivot_Paste!$A$2:$CC$577,81,FALSE)","v":"CBD"}]
[412235,{"$f":"VLOOKUP(A509,[1]Neighborhood_Pivot_Paste!$A$2:$CC$577,81,FALSE)","v":"CBD"}]
[412236,{"$f":"VLOOKUP(A510,[1]Neighborhood_Pivot_Paste!$A$2:$CC$577,81,FALSE)","v":"CBD"}]
[412241,{"$f":"VLOOKUP(A511,[1]Neighborhood_Pivot_Paste!$A$2:$CC$577,81,FALSE)","v":"CBD"}]
[412242,{"$f":"VLOOKUP(A512,[1]Neighborhood_Pivot_Paste!$A$2:$CC$577,81,FALSE)","v":"CBD"}]
[412243,{"$f":"VLOOKUP(A513,[1]Neighborhood_Pivot_Paste!$A$2:$CC$577,81,FALSE)","v":"CBD"}]
[412244,{"$f":"VLOOKUP(A514,[1]Neighborhood_Pivot_Paste!$A$2:$CC$577,81,FALSE)","v":"CBD"}]
[412245,{"$f":"VLOOKUP(A515,[1]Neighborhood_Pivot_Paste!$A$2:$CC$577,81,FALSE)","v":"CBD"}]
[412246,{"$f":"VLOOKUP(A516,[1]Neighborhood_Pivot_Paste!$A$2:$CC$577,81,FALSE)","v":"CBD"}]
[412251,{"$f":"VLOOKUP(A517,[1]Neighborhood_Pivot_Paste!$A$2:$CC$577,81,FALSE)","v":"Union Station"}]
[412252,{"$f":"VLOOKUP(A518,[1]Neighborhood_Pivot_Paste!$A$2:$CC$577,81,FALSE)","v":"Union Station"}]
[412253,{"$f":"VLOOKUP(A519,[1]Neighborhood_Pivot_Paste!$A$2:$CC$577,81,FALSE)","v":"Union Station"}]
[412254,{"$f":"VLOOKUP(A520,[1]Neighborhood_Pivot_Paste!$A$2:$CC$577,81,FALSE)","v":"Union Station"}]
[412255,{"$f":"VLOOKUP(A521,[1]Neighborhood_Pivot_Paste!$A$2:$CC$577,81,FALSE)","v":"Union Station"}]
[412256,{"$f":"VLOOKUP(A522,[1]Neighborhood_Pivot_Paste!$A$2:$CC$577,81,FALSE)","v":"Union Station"}]
[412257,{"$f":"VLOOKUP(A523,[1]Neighborhood_Pivot_Paste!$A$2:$CC$577,81,FALSE)","v":"Union Station"}]
[412261,{"$f":"VLOOKUP(A524,[1]Neighborhood_Pivot_Paste!$A$2:$CC$577,81,FALSE)","v":"Union Station"}]
[412262,{"$f":"VLOOKUP(A525,[1]Neighborhood_Pivot_Paste!$A$2:$CC$577,81,FALSE)","v":"Union Station"}]
[412263,{"$f":"VLOOKUP(A526,[1]Neighborhood_Pivot_Paste!$A$2:$CC$577,81,FALSE)","v":"Union Station"}]
[412264,{"$f":"VLOOKUP(A527,[1]Neighborhood_Pivot_Paste!$A$2:$CC$577,81,FALSE)","v":"Union Station"}]
[412265,{"$f":"VLOOKUP(A528,[1]Neighborhood_Pivot_Paste!$A$2:$CC$577,81,FALSE)","v":"Union Station"}]
[412266,{"$f":"VLOOKUP(A529,[1]Neighborhood_Pivot_Paste!$A$2:$CC$577,81,FALSE)","v":"Union Station"}]
[412270,{"$f":"VLOOKUP(A530,[1]Neighborhood_Pivot_Paste!$A$2:$CC$577,81,FALSE)","v":"Auraria"}]
[412280,{"$f":"VLOOKUP(A531,[1]Neighborhood_Pivot_Paste!$A$2:$CC$577,81,FALSE)","v":"Auraria"}]
[412290,{"$f":"VLOOKUP(A532,[1]Neighborhood_Pivot_Paste!$A$2:$CC$577,81,FALSE)","v":"Auraria"}]
[412301,{"$f":"VLOOKUP(A533,[1]Neighborhood_Pivot_Paste!$A$2:$CC$577,81,FALSE)","v":"CBD"}]
[412302,{"$f":"VLOOKUP(A534,[1]Neighborhood_Pivot_Paste!$A$2:$CC$577,81,FALSE)","v":"CBD"}]
[412303,{"$f":"VLOOKUP(A535,[1]Neighborhood_Pivot_Paste!$A$2:$CC$577,81,FALSE)","v":"CBD"}]
[412304,{"$f":"VLOOKUP(A536,[1]Neighborhood_Pivot_Paste!$A$2:$CC$577,81,FALSE)","v":"CBD"}]
[412311,{"$f":"VLOOKUP(A537,[1]Neighborhood_Pivot_Paste!$A$2:$CC$577,81,FALSE)","v":"CBD"}]
[412312,{"$f":"VLOOKUP(A538,[1]Neighborhood_Pivot_Paste!$A$2:$CC$577,81,FALSE)","v":"CBD"}]
[412321,{"$f":"VLOOKUP(A539,[1]Neighborhood_Pivot_Paste!$A$2:$CC$577,81,FALSE)","v":"CBD"}]
[412322,{"$f":"VLOOKUP(A540,[1]Neighborhood_Pivot_Paste!$A$2:$CC$577,81,FALSE)","v":"CBD"}]
[412323,{"$f":"VLOOKUP(A541,[1]Neighborhood_Pivot_Paste!$A$2:$CC$577,81,FALSE)","v":"CBD"}]
[412324,{"$f":"VLOOKUP(A542,[1]Neighborhood_Pivot_Paste!$A$2:$CC$577,81,FALSE)","v":"CBD"}]
[412330,{"$f":"VLOOKUP(A543,[1]Neighborhood_Pivot_Paste!$A$2:$CC$577,81,FALSE)","v":"Capitol Hill"}]
[412340,{"$f":"VLOOKUP(A544,[1]Neighborhood_Pivot_Paste!$A$2:$CC$577,81,FALSE)","v":"Capitol Hill"}]
[412350,{"$f":"VLOOKUP(A545,[1]Neighborhood_Pivot_Paste!$A$2:$CC$577,81,FALSE)","v":"Civic Center"}]
[412360,{"$f":"VLOOKUP(A546,[1]Neighborhood_Pivot_Paste!$A$2:$CC$577,81,FALSE)","v":"Civic Center"}]
[412370,{"$f":"VLOOKUP(A547,[1]Neighborhood_Pivot_Paste!$A$2:$CC$577,81,FALSE)","v":"Capitol Hill"}]
[412380,{"$f":"VLOOKUP(A548,[1]Neighborhood_Pivot_Paste!$A$2:$CC$577,81,FALSE)","v":"Capitol Hill"}]
[412390,{"$f":"VLOOKUP(A549,[1]Neighborhood_Pivot_Paste!$A$2:$CC$577,81,FALSE)","v":"Civic Center"}]
[412400,{"$f":"VLOOKUP(A550,[1]Neighborhood_Pivot_Paste!$A$2:$CC$577,81,FALSE)","v":"Auraria"}]
[412410,{"$f":"VLOOKUP(A551,[1]Neighborhood_Pivot_Paste!$A$2:$CC$577,81,FALSE)","v":"Auraria"}]
[412421,{"$f":"VLOOKUP(A552,[1]Neighborhood_Pivot_Paste!$A$2:$CC$577,81,FALSE)","v":"Union Station"}]
[412422,{"$f":"VLOOKUP(A553,[1]Neighborhood_Pivot_Paste!$A$2:$CC$577,81,FALSE)","v":"Union Station"}]
[412423,{"$f":"VLOOKUP(A554,[1]Neighborhood_Pivot_Paste!$A$2:$CC$577,81,FALSE)","v":"Union Station"}]
[412424,{"$f":"VLOOKUP(A555,[1]Neighborhood_Pivot_Paste!$A$2:$CC$577,81,FALSE)","v":"Union Station"}]
[412425,{"$f":"VLOOKUP(A556,[1]Neighborhood_Pivot_Paste!$A$2:$CC$577,81,FALSE)","v":"Union Station"}]
[412426,{"$f":"VLOOKUP(A557,[1]Neighborhood_Pivot_Paste!$A$2:$CC$577,81,FALSE)","v":"Union Station"}]
[413020,{"$f":"VLOOKUP(A558,[1]Neighborhood_Pivot_Paste!$A$2:$CC$577,81,FALSE)","v":"DIA"}]
[413030,{"$f":"VLOOKUP(A559,[1]Neighborhood_Pivot_Paste!$A$2:$CC$577,81,FALSE)","v":"DIA"}]
[413050,{"$f":"VLOOKUP(A560,[1]Neighborhood_Pivot_Paste!$A$2:$CC$577,81,FALSE)","v":"DIA"}]
[413060,{"$f":"VLOOKUP(A561,[1]Neighborhood_Pivot_Paste!$A$2:$CC$577,81,FALSE)","v":"DIA"}]
[413070,{"$f":"VLOOKUP(A562,[1]Neighborhood_Pivot_Paste!$A$2:$CC$577,81,FALSE)","v":"DIA"}]
[413080,{"$f":"VLOOKUP(A563,[1]Neighborhood_Pivot_Paste!$A$2:$CC$577,81,FALSE)","v":"DIA"}]
[413090,{"$f":"VLOOKUP(A564,[1]Neighborhood_Pivot_Paste!$A$2:$CC$577,81,FALSE)","v":"DIA"}]
[413100,{"$f":"VLOOKUP(A565,[1]Neighborhood_Pivot_Paste!$A$2:$CC$577,81,FALSE)","v":"DIA"}]
[413110,{"$f":"VLOOKUP(A566,[1]Neighborhood_Pivot_Paste!$A$2:$CC$577,81,FALSE)","v":"DIA"}]
[413120,{"$f":"VLOOKUP(A567,[1]Neighborhood_Pivot_Paste!$A$2:$CC$577,81,FALSE)","v":"DIA"}]
[413130,{"$f":"VLOOKUP(A568,[1]Neighborhood_Pivot_Paste!$A$2:$CC$577,81,FALSE)","v":"DIA"}]
[413140,{"$f":"VLOOKUP(A569,[1]Neighborhood_Pivot_Paste!$A$2:$CC$577,81,FALSE)","v":"DIA"}]
[413150,{"$f":"VLOOKUP(A570,[1]Neighborhood_Pivot_Paste!$A$2:$CC$577,81,FALSE)","v":"DIA"}]
[413160,{"$f":"VLOOKUP(A571,[1]Neighborhood_Pivot_Paste!$A$2:$CC$577,81,FALSE)","v":"DIA"}]
[413170,{"$f":"VLOOKUP(A572,[1]Neighborhood_Pivot_Paste!$A$2:$CC$577,81,FALSE)","v":"DIA"}]
[413180,{"$f":"VLOOKUP(A573,[1]Neighborhood_Pivot_Paste!$A$2:$CC$577,81,FALSE)","v":"DIA"}]
[413190,{"$f":"VLOOKUP(A574,[1]Neighborhood_Pivot_Paste!$A$2:$CC$577,81,FALSE)","v":"DIA"}]
[413200,{"$f":"VLOOKUP(A575,[1]Neighborhood_Pivot_Paste!$A$2:$CC$577,81,FALSE)","v":"DIA"}]
[413210,{"$f":"VLOOKUP(A576,[1]Neighborhood_Pivot_Paste!$A$2:$CC$577,81,FALSE)","v":"DIA"}]
[413220,{"$f":"VLOOKUP(A577,[1]Neighborhood_Pivot_Paste!$A$2:$CC$577,81,FALSE)","v":{"$error":"#N/A"}}]

{"sheet":"Disclaimers","index":1,"n_rows":15,"n_cols":1,"rows_kept":15,"cut":false,"hidden":false,"merged":[]}
["Purpose:"]
["The purpose of this spreadsheet is to provide land use planners a tool for understanding the potential differences in water demand for different situations of new residential development. It is the hopes of the authors that this tool can be used to facilitate the sharing of knowledge among land use and water professionals."]
[]
["Intentions:"]
["It is the intention of the authors that this tool serve as a means to promote integration and conversation among land use planners and the water resources community."]
["It is not the intention of the authors for this tool to be the sole source of information used for decision making."]
[]
["What this tool does:"]
["This tool provide relative water demand comparisons among hypothetical development scenarios for new residential development."]
["This tool allows the user to tailor new residential development scenarios and evaluate the relative differences in land use and water demand."]
[]
["What this tool does not do:"]
["This tool does not take into account any water demands beyond those occuring on residential parcels. Therefore, it lacks the full picture of the water demands associated with the residential development scenario."]
["This tool is not a predictive model for local, regional, state, or national water demand forecasting and should not be used in place of any such models."]
["This tool does not take into account any localized land use policy, codes or ordinances."]

{"sheet":"Glossary","index":2,"n_rows":13,"n_cols":2,"rows_kept":13,"cut":false,"hidden":false,"merged":[]}
["Term","Definition"]
[]
["Acre-Feet (AF)","A volume of water often used in the water resources community. One acre-foot is equal to 325,851 gallons."]
["Dwelling Unit (Unit)","A structure that is used as a home or residence."]
["GPCD","Gallons per capita per day "]
["GPSF","Gallons per square foot annually"]
["Household","An occupied dwelling unit."]
["Indoor Water Use","Water used for domestic purposes such as cooking, cleaning, bathing and toilet flushing."]
["kgal","Thousands of gallons"]
["Outdoor Water Use","Water used primarily for landscape irrigation purposes. Other outdoor water uses can include car washing and power washing."]
["Product Type","A category of residential development. Each product type has unique characteristics that distinguish it from other residential development types."]
["Seasonal Water Use","Seasonal water use is similar to outdoor water use in that it is highest during summer months and can include water used for landscape irrigation. The important distinction between seasonal water use and outdoor water use is that landscape irrigatoin is not necessarily the primary use of the water, though it may be. For example, some high density buildings have evaporative cooling systems that increase the building's water use during warmer months in a similar pattern to irrigation water use at parcels with irrigated landscapes. Though the water demand for evaporative cooling may exhibit a similar seasonal pattern as irrigation water demand, it is not an outdoor water demand. However, in instances where there is increased demand in summer months due to landscape irrigation needs, that demand can still be characterized as a seasonal use because it is unique to the summer season."]
["Xeriscape","A style of landscape design requiring little or no irrigation or other maintenance, used in arid regions."]

{"sheet":"Population & Product Type Model","index":3,"n_rows":52,"n_cols":15,"rows_kept":52,"cut":false,"hidden":false,"merged":[[42,12,42,14],[9,0,9,3],[45,12,49,15],[51,12,55,15],[4,0,4,9],[9,11,9,16],[40,0,40,9],[27,0,27,3],[9,5,9,9]]}
["Population and Product Type Model"]
[]
["Instructions:"]
["Section 1: Enter the planned population in cell B13 and distribute that population by residential product type in the rows below. Create and compare up to three scenarios. Scenarios can be named in cells B12:D12. "]
["Section 2: Develop assumptions for your scenarios by entering values in the blue cells in Section 2; Section 3 provides a guide to the assumptions. Sections 4 & 5 provide the model's outputs."]
[]
["Key:"]
["Changeable User Input","Calculated Output"]
[]
["Section 1. Population Distribution by Product Type",null,null,null,null,"Section 2. User Assumptions (see Section 3 for Assumption Guidance)",null,null,null,null,null,"Section.  Assumption Guidance"]
[]
["Scenario Name"]
["Total Population:",null,{"$f":"B13","v":0},{"$f":"B13","v":0},null,null,"Persons per Household","Indoor GPCD","Avg. Units per Acre","Seasonal GPSF (pervious)",null,null,"Indoor GPCD Guide","Typical GPCD Range"]
["     Large Single Family",null,null,null,null,"Large Single Family",null,null,null,null,null,null,"Inefficient","> 60"]
["     Typical Single Family",null,null,null,null,"Typical Single Family",null,null,null,null,null,null,"Federal Fixture Standards","45-60"]
["     Small Single Family",null,null,null,null,"Small Single Family",null,null,null,null,null,null,"State (CO) Fixture Standards","35-45"]
["     Small Multifamily",null,null,null,null,"Small Multifamily",null,null,null,null,null,null,"Efficient at Currently Available Technology","25-35"]
["     3-Story Walkup",null,null,null,null,"3-Story Walkup",null,null,null,null,null,null,"Indoor GPCD Examples","Theoretical Minimum","Efficient"]
["     Mid-Range Multifamily",null,null,null,null,"Mid-Range Multifamily",null,null,null,null,null,null,"Large Single Family",25,40]
["     High Density Multifamily",null,null,null,null,"High Density Multifamily",null,null,null,null,null,null,"Typical Single Family",25,40]
[null,{"$f":"IF(B13-SUM(B14:B20)=0,\"\",IF(B13-SUM(B14:B20)=1,\"Add \"&B13-SUM(B14:B20)&\" Person\",IF(B13-SUM(B14:B20)=-1,\"Remove \"&B13-SUM(B14:B20)&\" Person\",IF(B13-SUM(B14:B20)>0,\"Add \"&B13-SUM(B14:B20)&\" People\",\"Remove \"&B13-SUM(B14:B20)&\" People\"))))","v":""},{"$f":"IF(C13-SUM(C14:C20)=0,\"\",IF(C13-SUM(C14:C20)=1,\"Add \"&C13-SUM(C14:C20)&\" Person\",IF(C13-SUM(C14:C20)=-1,\"Remove \"&C13-SUM(C14:C20)&\" Person\",IF(C13-SUM(C14:C20)>0,\"Add \"&C13-SUM(C14:C20)&\" People\",\"Remove \"&C13-SUM(C14:C20)&\" People\"))))","v":""},{"$f":"IF(D13-SUM(D14:D20)=0,\"\",IF(D13-SUM(D14:D20)=1,\"Add \"&D13-SUM(D14:D20)&\" Person\",IF(D13-SUM(D14:D20)=-1,\"Remove \"&D13-SUM(D14:D20)&\" Person\",IF(D13-SUM(D14:D20)>0,\"Add \"&D13-SUM(D14:D20)&\" People\",\"Remove \"&D13-SUM(D14:D20)&\" People\"))))","v":""},null,null,null,null,null,null,null,null,"Small Single Family",25,40]
[null,null,null,null,null,null,null,null,null,null,null,null,"Small Multifamily",25,40]
[null,null,null,null,null,null,null,null,null,null,null,null,"3-Story Walkup",25,40]
[null,null,null,null,null,null,null,null,null,null,null,null,"Mid-Range Multifamily",25,40]
[null,null,null,null,null,null,null,null,null,null,null,null,"High Density Multifamily",25,40]
[]
[null,null,null,null,null,null,null,null,null,null,null,null,"Dwelling Units per Acre Guide","Typical Range"]
["Table 4. Model Output",null,null,null,null,null,null,null,null,null,null,null,"Large Single Family","2 to 4 units per acre"]
[null,null,null,null,null,null,null,null,null,null,null,null,"Typical Single Family","5 to 10 units per acre"]
["Scenario Name",{"$f":"B12","v":0},{"$f":"C12","v":0},0,null,null,null,null,null,null,null,null,"Small Single Family","10 to 15 units per acre"]
["   Estimated Acres of Development",{"$f":"IFERROR(((B14/$G14)/$I14),0)+IFERROR(((B15/$G15)/$I15),0)+IFERROR(((B16/$G16)/$I16),0)+IFERROR(((B17/$G17)/$I17),0)+IFERROR(((B18/$G18)/$I18),0)+IFERROR(((B19/$G19)/$I19),0)+IFERROR(((B20/$G20)/$I20),0)","v":0},{"$f":"IFERROR(((C14/$G14)/$I14),0)+IFERROR(((C15/$G15)/$I15),0)+IFERROR(((C16/$G16)/$I16),0)+IFERROR(((C17/$G17)/$I17),0)+IFERROR(((C18/$G18)/$I18),0)+IFERROR(((C19/$G19)/$I19),0)+IFERROR(((C20/$G20)/$I20),0)","v":0},0,null,null,null,null,null,null,null,null,"Small Multifamily","10 to 25 units per acre"]
["   Estimated Pervious Area (acres)",{"$f":"IFERROR((Equation!$B$1*($I14^Equation!$B$2)+(VLOOKUP(ROUND($I14,0),Error_Adjust!$A$2:$B$209,2,FALSE)))*(B14/$G14)/43560,0)+IFERROR((Equation!$B$1*($I15^Equation!$B$2)+(VLOOKUP(ROUND($I15,0),Error_Adjust!$A$2:$B$209,2,FALSE)))*(B15/$G15)/43560,0)+IFERROR((Equation!$B$1*($I16^Equation!$B$2)+(VLOOKUP(ROUND($I16,0),Error_Adjust!$A$2:$B$209,2,FALSE)))*(B16/$G16)/43560,0)+IFERROR((Equation!$B$1*($I17^Equation!$B$2)+(VLOOKUP(ROUND($I17,0),Error_Adjust!$A$2:$B$209,2,FALSE)))*(B17/$G17)/43560,0)+IFERROR((Equation!$B$1*($I18^Equation!$B$2)+(VLOOKUP(ROUND($I18,0),Error_Adjust!$A$2:$B$209,2,FALSE)))*(B18/$G18)/43560,0)+IFERROR((Equation!$B$1*($I19^Equation!$B$2)+(VLOOKUP(ROUND($I19,0),Error_Adjust!$A$2:$B$209,2,FALSE)))*(B19/$G19)/43560,0)+IFERROR((Equation!$B$1*($I20^Equation!$B$2)+(VLOOKUP(ROUND($I20,0),Error_Adjust!$A$2:$B$209,2,FALSE)))*(B20/$G20)/43560,0)","v":0},{"$f":"IFERROR((Equation!$B$1*($I14^Equation!$B$2)+(VLOOKUP(ROUND($I14,0),Error_Adjust!$A$2:$B$209,2,FALSE)))*(C14/$G14)/43560,0)+IFERROR((Equation!$B$1*($I15^Equation!$B$2)+(VLOOKUP(ROUND($I15,0),Error_Adjust!$A$2:$B$209,2,FALSE)))*(C15/$G15)/43560,0)+IFERROR((Equation!$B$1*($I16^Equation!$B$2)+(VLOOKUP(ROUND($I16,0),Error_Adjust!$A$2:$B$209,2,FALSE)))*(C16/$G16)/43560,0)+IFERROR((Equation!$B$1*($I17^Equation!$B$2)+(VLOOKUP(ROUND($I17,0),Error_Adjust!$A$2:$B$209,2,FALSE)))*(C17/$G17)/43560,0)+IFERROR((Equation!$B$1*($I18^Equation!$B$2)+(VLOOKUP(ROUND($I18,0),Error_Adjust!$A$2:$B$209,2,FALSE)))*(C18/$G18)/43560,0)+IFERROR((Equation!$B$1*($I19^Equation!$B$2)+(VLOOKUP(ROUND($I19,0),Error_Adjust!$A$2:$B$209,2,FALSE)))*(C19/$G19)/43560,0)+IFERROR((Equation!$B$1*($I20^Equation!$B$2)+(VLOOKUP(ROUND($I20,0),Error_Adjust!$A$2:$B$209,2,FALSE)))*(C20/$G20)/43560,0)","v":0},{"$f":"IFERROR((Equation!$B$1*($I14^Equation!$B$2)+(VLOOKUP(ROUND($I14,0),Error_Adjust!$A$2:$B$209,2,FALSE)))*(D14/$G14)/43560,0)+IFERROR((Equation!$B$1*($I15^Equation!$B$2)+(VLOOKUP(ROUND($I15,0),Error_Adjust!$A$2:$B$209,2,FALSE)))*(D15/$G15)/43560,0)+IFERROR((Equation!$B$1*($I16^Equation!$B$2)+(VLOOKUP(ROUND($I16,0),Error_Adjust!$A$2:$B$209,2,FALSE)))*(D16/$G16)/43560,0)+IFERROR((Equation!$B$1*($I17^Equation!$B$2)+(VLOOKUP(ROUND($I17,0),Error_Adjust!$A$2:$B$209,2,FALSE)))*(D17/$G17)/43560,0)+IFERROR((Equation!$B$1*($I18^Equation!$B$2)+(VLOOKUP(ROUND($I18,0),Error_Adjust!$A$2:$B$209,2,FALSE)))*(D18/$G18)/43560,0)+IFERROR((Equation!$B$1*($I19^Equation!$B$2)+(VLOOKUP(ROUND($I19,0),Error_Adjust!$A$2:$B$209,2,FALSE)))*(D19/$G19)/43560,0)+IFERROR((Equation!$B$1*($I20^Equation!$B$2)+(VLOOKUP(ROUND($I20,0),Error_Adjust!$A$2:$B$209,2,FALSE)))*(D20/$G20)/43560,0)","v":0},null,null,null,null,null,null,null,null,"3-Story Walkup","15 to 55 units per acre"]
["   Annual Indoor Demand, AF",{"$f":"((B14*$H14*365)+(B15*$H15*365)+(B16*$H16*365)+(B17*$H17*365)+(B18*$H18*365)+(B19*$H19*365)+(B20*$H20*365))/325851","v":0},{"$f":"((C14*$H14*365)+(C15*$H15*365)+(C16*$H16*365)+(C17*$H17*365)+(C18*$H18*365)+(C19*$H19*365)+(C20*$H20*365))/325851","v":0},{"$f":"((D14*$H14*365)+(D15*$H15*365)+(D16*$H16*365)+(D17*$H17*365)+(D18*$H18*365)+(D19*$H19*365)+(D20*$H20*365))/325851","v":0},null,null,null,null,null,null,null,null,"Mid-Range Multifamily","40 to 165 units per acre"]
["   Annual Seasonal Demand, AF",{"$f":"IFERROR(((Equation!$B$1*($I14^Equation!$B$2)*(B14/$G14))*$J14)/325851,0)+IFERROR(((Equation!$B$1*($I15^Equation!$B$2)*(B15/$G15))*$J15)/325851,0)+IFERROR(((Equation!$B$1*($I16^Equation!$B$2)*(B16/$G16))*$J16)/325851,0)+IFERROR(((Equation!$B$1*($I17^Equation!$B$2)*(B17/$G17))*$J17)/325851,0)+IFERROR(((Equation!$B$1*($I18^Equation!$B$2)*(B18/$G18))*$J18)/325851,0)+IFERROR(((Equation!$B$1*($I19^Equation!$B$2)*(B19/$G19))*$J19)/325851,0)+IFERROR(((Equation!$B$1*($I20^Equation!$B$2)*(B20/$G20))*$J20)/325851,0)","v":0},{"$f":"IFERROR(((Equation!$B$1*($I14^Equation!$B$2)*(C14/$G14))*$J14)/325851,0)+IFERROR(((Equation!$B$1*($I15^Equation!$B$2)*(C15/$G15))*$J15)/325851,0)+IFERROR(((Equation!$B$1*($I16^Equation!$B$2)*(C16/$G16))*$J16)/325851,0)+IFERROR(((Equation!$B$1*($I17^Equation!$B$2)*(C17/$G17))*$J17)/325851,0)+IFERROR(((Equation!$B$1*($I18^Equation!$B$2)*(C18/$G18))*$J18)/325851,0)+IFERROR(((Equation!$B$1*($I19^Equation!$B$2)*(C19/$G19))*$J19)/325851,0)+IFERROR(((Equation!$B$1*($I20^Equation!$B$2)*(C20/$G20))*$J20)/325851,0)","v":0},{"$f":"IFERROR(((Equation!$B$1*($I14^Equation!$B$2)*(D14/$G14))*$J14)/325851,0)+IFERROR(((Equation!$B$1*($I15^Equation!$B$2)*(D15/$G15))*$J15)/325851,0)+IFERROR(((Equation!$B$1*($I16^Equation!$B$2)*(D16/$G16))*$J16)/325851,0)+IFERROR(((Equation!$B$1*($I17^Equation!$B$2)*(D17/$G17))*$J17)/325851,0)+IFERROR(((Equation!$B$1*($I18^Equation!$B$2)*(D18/$G18))*$J18)/325851,0)+IFERROR(((Equation!$B$1*($I19^Equation!$B$2)*(D19/$G19))*$J19)/325851,0)+IFERROR(((Equation!$B$1*($I20^Equation!$B$2)*(D20/$G20))*$J20)/325851,0)","v":0},null,null,null,null,null,null,null,null,"High Density Multifamily","50 to 300 units per acre"]
["   Total Annual Demand, AF",{"$f":"B33+B34","v":0},{"$f":"C33+C34","v":0},{"$f":"D33+D34","v":0}]
["   Overall GPCD",{"$f":"(B35*325851)/B13/365","v":{"$error":"#DIV/0!"}},{"$f":"(C35*325851)/C13/365","v":{"$error":"#DIV/0!"}},{"$f":"(D35*325851)/D13/365","v":{"$error":"#DIV/0!"}},null,null,null,null,null,null,null,null,"Seasonal Gallons per Square Foot (pervious) Guide","Typical GPSF Range"]
["   Total Dwelling Units",{"$f":"(IFERROR((B14/$G14),0)+IFERROR((B15/$G15),0)+IFERROR((B16/$G16),0)+IFERROR((B17/$G17),0)+IFERROR((B18/$G18),0)+IFERROR((B19/$G19),0)+IFERROR((B20/$G20),0))","v":0},{"$f":"(IFERROR((C14/$G14),0)+IFERROR((C15/$G15),0)+IFERROR((C16/$G16),0)+IFERROR((C17/$G17),0)+IFERROR((C18/$G18),0)+IFERROR((C19/$G19),0)+IFERROR((C20/$G20),0))","v":0},0,null,null,null,null,null,null,null,null,"Inefficient for Bluegrass","> 18"]
["   Gallons per Dwelling Unit per Year",{"$f":"(B35*325851)/B37","v":{"$error":"#DIV/0!"}},{"$f":"(C35*325851)/C37","v":{"$error":"#DIV/0!"}},{"$f":"(D35*325851)/D37","v":{"$error":"#DIV/0!"}},null,null,null,null,null,null,null,null,"Efficient for Bluegrass","12-18"]
["   AF per Acre per Year",{"$f":"B35/B31","v":{"$error":"#DIV/0!"}},{"$f":"C35/C31","v":{"$error":"#DIV/0!"}},{"$f":"D35/D31","v":{"$error":"#DIV/0!"}},null,null,null,null,null,null,null,null,"Highly Efficient for Bluegrass/Some Xeriscape","9-12"]
[null,null,null,null,null,null,null,null,null,null,null,null,"Xeriscape ","5-9"]
["Table 5. Graphic Output",null,null,null,null,null,null,null,null,null,null,null,"Little or No Seasonal Use","< 5"]
[]
[null,null,null,null,null,null,null,null,null,null,null,null,"Link to examples of single family landscape configurations and corresponding GPSF"]
[]
[null,null,null,null,null,null,null,null,null,null,null,null,"Notes:"]
[null,null,null,null,null,null,null,null,null,null,null,null,"Indoor per capita theoretical minimum is based on the most efficient indoor fixtures available on the market today. If a home has installed the most efficient fixtures available, the theoretical minimum gpcd, assuming normal frequency of use, is approximately 25 gpcd.\n\n"]
[]
[]
[]
[]
[]
[null,null,null,null,null,null,null,null,null,null,null,null,"Outdoor GPSF is influenced by many variables including weather, landscape type and landscape configuration. As residential density increases the amount of pervious area decreases. With increased density comes the potential for greater seasonal use of water for cooling evaporative purposes."]

{"sheet":"Density_Comparison_Model","index":4,"n_rows":53,"n_cols":15,"rows_kept":53,"cut":false,"hidden":false,"merged":[[10,11,10,16],[43,12,43,14],[10,0,10,2],[46,12,50,15],[52,12,56,15]]}
["Residential Density Comparison Model"]
[]
["Instructions:"]
["This model allows the user to examine changes in water demand from changes in land use and/or efficiency."]
["Section 1: Enter scenario assumptions in the blue cells. Section 2 provides a guide to the assumptions."]
["Sections 3 & 4 provide the model's output."]
[]
["Key:"]
["Changeable Input","Calculated Output"]
[]
["Section 1. Development & Water Use Characteristics",null,null,null,null,null,null,null,null,null,null,"Section 2.  Assumption Guidance"]
[]
["Scenario Name"]
["   Acres",null,{"$f":"IF(B14=\"\",\"\",B14)","v":""},null,null,null,null,null,null,null,null,null,"Indoor GPCD Guide","Typical GPCD Range"]
["   Dwelling Units",null,null,null,null,null,null,null,null,null,null,null,"Inefficient","> 60"]
["   Avg. Persons per Household",null,null,null,null,null,null,null,null,null,null,null,"Federal Fixture Standards","45-60"]
["   Indoor Gallons per Capita per Day",null,null,null,null,null,null,null,null,null,null,null,"State Fixture Standards","35-45"]
["   Seasonal Gallons per Pervious Square Foot",null,null,null,null,null,null,null,null,null,null,null,"Efficient at Currently Available Technology","25-35"]
["   Dwelling Units per Acre",{"$f":"B15/B14","v":{"$error":"#DIV/0!"}},{"$f":"C15/C14","v":{"$error":"#VALUE!"}},null,null,null,null,null,null,null,null,null,"Indoor GPCD Observations","Theoretical Minimum","Efficient"]
["   Most Likely Product Type ",{"$f":"IFERROR(INDEX(Extras!$H$16:$H$22,MATCH(INDEX(Extras!$I$16:$I$22,MATCH(MIN(ABS(Extras!$I$16:$I$22-(Density_Comparison_Model!$B15/B14))),ABS(Extras!$I$16:$I$22-(Density_Comparison_Model!$B15/B14)),0)),Extras!$I$16:$I$22,0)),\"\")","v":""},{"$f":"IFERROR(INDEX(Extras!$H$16:$H$22,MATCH(INDEX(Extras!$I$16:$I$22,MATCH(MIN(ABS(Extras!$I$16:$I$22-(Density_Comparison_Model!$C15/C14))),ABS(Extras!$I$16:$I$22-(Density_Comparison_Model!$C15/C14)),0)),Extras!$I$16:$I$22,0)),\"\")","v":""},null,null,null,null,null,null,null,null,null,"Large Single Family",25,40]
["   Average Pervious Square Feet per Unit",{"$f":"IFERROR((Equation!$B$1*(B15/B14)^Equation!$B$2)+(VLOOKUP(ROUND(B15/B14,0),Error_Adjust!$A$2:$B$209,2,FALSE)),\"\")","v":""},{"$f":"IFERROR(Equation!$B$1*((C15/C14)^Equation!$B$2)+(VLOOKUP(ROUND(C15/C14,0),Error_Adjust!$A$2:$B$209,2,FALSE)),\"\")","v":""},null,null,null,null,null,null,null,null,null,"Typical Single Family",25,40]
[null,null,null,null,null,null,null,null,null,null,null,null,"Small Single Family",25,40]
[null,null,null,null,null,null,null,null,null,null,null,null,"Small Multifamily",25,40]
["Section 3. Annual Demand Summary",null,null,null,null,null,null,null,null,null,null,null,"3-Story Walkup",25,40]
[null,null,null,null,null,null,null,null,null,null,null,null,"Mid-Range Multifamily",25,40]
["Scenario Name",{"$f":"B13","v":0},{"$f":"C13","v":0},"∆","%∆",null,null,null,null,null,null,null,"High Density Multifamily",25,40]
["   Annual Indoor Demand, AF",{"$f":"IFERROR((((B15*B16)*B17*365)/325851),\"\")","v":0},{"$f":"(((C15)*C16)*C17*365)/325851","v":0},{"$f":"C27-B27","v":0},{"$f":"IFERROR(D27/B27,\"\")","v":""}]
["   Annual Seasonal Demand, AF",{"$f":"IFERROR((((B15)*B21)*B18)/325851,\"\")","v":""},{"$f":"IFERROR((((C15)*C21)*C18)/325851,\"\")","v":""},{"$f":"IFERROR(C28-B28,\"\")","v":""},"",null,null,null,null,null,null,null,"Dwelling Units per Acre Guide","Typical Range"]
["   Annual Total Demand, AF",{"$f":"IFERROR(B27+B28,\"\")","v":""},{"$f":"IFERROR(C27+C28,\"\")","v":""},{"$f":"C29-B29","v":{"$error":"#VALUE!"}},"",null,null,null,null,null,null,null,"Large Single Family","2 to 4 units per acre"]
["   Annual Total Demand, kgal",{"$f":"($B$29*325.851)","v":{"$error":"#VALUE!"}},{"$f":"($C$29*325.851)","v":{"$error":"#VALUE!"}},{"$f":"C30-B30","v":{"$error":"#VALUE!"}},"",null,null,null,null,null,null,null,"Typical Single Family","5 to 10 units per acre"]
["   Overall GPCD",{"$f":"IFERROR((B30*1000)/B32/365,\"\")","v":""},{"$f":"IFERROR((C30*1000)/C32/365,\"\")","v":""},{"$f":"IFERROR(C31-B31,\"\")","v":""},"",null,null,null,null,null,null,null,"Small Single Family","10 to 15 units per acre"]
["   Population",{"$f":"(B15*B16)","v":0},{"$f":"(C15*C16)","v":0},{"$f":"C32-B32","v":0},"",null,null,null,null,null,null,null,"Small Multifamily","10 to 25 units per acre"]
["   AF/person/year",{"$f":"IFERROR(B29/B32,\"\")","v":""},{"$f":"IFERROR(C29/C32,\"\")","v":""},{"$f":"IFERROR(C33-B33,\"\")","v":""},"",null,null,null,null,null,null,null,"3-Story Walkup","15 to 55 units per acre"]
["   Gallons/Dwelling Unit/Year",{"$f":"(B30*1000)/B15","v":{"$error":"#VALUE!"}},{"$f":"(C30*1000)/C15","v":{"$error":"#VALUE!"}},{"$f":"IFERROR(C34-B34,\"\")","v":""},"",null,null,null,null,null,null,null,"Mid-Range Multifamily","40 to 165 units per acre"]
["   AF/Acre/Year",{"$f":"IFERROR(B29/B14,\"\")","v":""},{"$f":"IFERROR(C29/C14,\"\")","v":""},{"$f":"IFERROR(C35-B35,\"\")","v":""},"",null,null,null,null,null,null,null,"High Density Multifamily","50 to 300 units per acre"]
["   % Indoor Use",{"$f":"IFERROR(B27/$B$29,\"\")","v":""},{"$f":"IFERROR(C27/$C$29,\"\")","v":""},{"$f":"IFERROR(C36-B36,\"\")","v":""}]
["   % Seasonal Use",{"$f":"IFERROR(B28/$B$29,\"\")","v":""},{"$f":"IFERROR(C28/$C$29,\"\")","v":""},{"$f":"IFERROR(C37-B37,\"\")","v":""},null,null,null,null,null,null,null,null,"Seasonal Gallons per Square Foot (pervious) Guide","Typical GPSF Range"]
[null,null,null,null,null,null,null,null,null,null,null,null,"Inefficient for Bluegrass","> 18"]
[null,null,null,null,null,null,null,null,null,null,null,null,"Efficient for Bluegrass","12-18"]
["Section 4. Graphic Output",null,null,null,null,null,null,null,null,null,null,null,"Highly Efficient for Bluegrass/Some Xeriscape","9-12"]
[null,null,null,null,null,null,null,null,null,null,null,null,"Xeriscape ","5-9"]
[null,null,null,null,null,null,null,null,null,null,null,null,"Little or No Seasonal Use","< 5"]
[]
[null,null,null,null,null,null,null,null,null,null,null,null,"Link to examples of single family landscape configurations and corresponding GPSF"]
[]
[null,null,null,null,null,null,null,null,null,null,null,null,"Notes:"]
[null,null,null,null,null,null,null,null,null,null,null,null,"Indoor per capita theoretical minimum is based on the most efficient indoor fixtures available on the market today. If a home has installed the most efficient fixtures available, the theoretical minimum gpcd, assuming normal frequency of use, is approximately 25 gpcd.\n\n"]
[]
[]
[]
[]
[]
[null,null,null,null,null,null,null,null,null,null,null,null,"Outdoor GPSF is influenced by many variables including weather, landscape type and landscape configuration. As residential density increases the amount of pervious area decreases. With increased density comes the potential for greater seasonal use of water for evaporative cooling purposes."]

{"sheet":"Error_Adjust","index":5,"n_rows":209,"n_cols":2,"rows_kept":209,"cut":false,"hidden":true,"merged":[]}
["Rounded Units per Acre","Average Error (observed minus modeled)"]
[0,-44653.221460856163]
[1,1184.1821397638755]
[2,32.741019465999571]
[3,-92.058925366887749]
[4,112.24564793484711]
[5,219.34861659087773]
[6,72.449595471633984]
[7,-65.968619646679898]
[8,-33.779492458563269]
[9,45.974655747820904]
[10,18.094300775599613]
[11,35.473029534600506]
[12,228.68026638256541]
[13,228.41442390189519]
[14,156.4548657172038]
[15,128.7595413897964]
[16,196.08337483011761]
[17,155.77408838545844]
[18,87.015404518881169]
[19,144.70918792585974]
[20,114.00753280636299]
[21,117.90610557762461]
[22,61.379974553829214]
[23,88.600733829139301]
[24,113.00674604534279]
[25,112.99113620935027]
[26,84.446370264553991]
[27,28.374645481769075]
[28,41.403915994538529]
[29,22.891820665043294]
[30,10.924121601651871]
[31,40.45364136306209]
[32,65.054867559359707]
[33,4.6291613884516076]
[34,73.65503502191082]
[35,92.149900426444475]
[36,50.821301724274178]
[37,26.087412899903065]
[38,16.702841733724892]
[39,53.556026083578836]
[40,25.305962921502374]
[41,34.530015540514754]
[42,21.882019806624875]
[43,30.292361990682348]
[44,14.583234215334327]
[45,-2.3496494323815478]
[46,-5.7137087515577027]
[47,-36.965899658368961]
[48,-54.611908798402872]
[49,-18.273470811571745]
[50,-29.558857456447527]
[51,-10.441321045892833]
[52,-16.219393592483936]
[53,-54.510106613770127]
[54,1.5062650027527884]
[55,-27.846875071401232]
[56,7.9696315429472397]
[57,-41.871637395056915]
[58,-52.202583331184243]
[59,-4.3789558830544983]
[60,-31.976298941739891]
[61,-44.731123321038474]
[62,-47.802520956772156]
[63,-31.706793453964533]
[64,-19.041431550568557]
[65,-55.31248062515273]
[66,-34.310014380510431]
[67,-34.352471372860172]
[68,-42.018731384176007]
[69,-14.36738521227581]
[70,-26.009589148449038]
[71,-49.535522797961733]
[72,-11.989555314448458]
[73,-26.815272870009949]
[74,-9.5300045022825977]
[75,62.137007096559678]
[76,-22.583311512694877]
[77,-22.910870956479783]
[78,-19.322603436277728]
[79,-40.64499604259013]
[80,-28.574900132664354]
[81,-42.659759157192561]
[82,4.0579910108617874]
[83,-43.523934541918429]
[84,-25.971217355393051]
[85,-31.230198996587841]
[86,-21.246305028396446]
[87,-9.1341486276010855]
[88,-53.485285167561536]
[89,-80.967028052516028]
[90,-22.004426924624219]
[91,-10.012559620359999]
[92,-5.9134537677816095]
[93,-27.272638582294725]
[94,-43.620851101932232]
[95,-25.153939321527709]
[96,17.57023052922565]
[97,-35.17976765604358]
[98,-3.2789670254952328]
[99,-8.0415608371111684]
[100,-2.8691876182854372]
[101,2.5380029365948769]
[102,-18.622915848348516]
[103,-26.525638631856918]
[104,-26.275144042859289]
[105,-16.038653910217885]
[106,-38.930957594004362]
[107,-11.588806025510046]
[108,-43.051375545778789]
[109,-18.38215015170011]
[110,11.65483394723409]
[111,4.1973968167094284]
[112,-31.506899411914315]
[113,-56.466425709944154]
[114,-33.07200648238738]
[115,-15.412857701318492]
[116,-46.340106842702106]
[117,-0.42799318772145356]
[118,-5.5299121576471428]
[119,-23.003680129839076]
[120,-0.12748182523168339]
[121,-55.22821547167549]
[122,-30.498319828123531]
[123,3.9254360720229187]
[124,2.3880050551293266]
[125,-14.101581671831312]
[126,-60.558721136401765]
[127,7.2150219912354432]
[128,-56.647706198505794]
[130,-16.39558586277721]
[131,-12.373622211191986]
[132,17.338180369762746]
[133,227.96401336040267]
[134,-10.550257803064151]
[135,-17.502025908970968]
[137,-32.815489163242368]
[138,876.16888552948956]
[139,54.001420711680566]
[140,-4.2607340689589961]
[141,-20.006426993006826]
[142,-14.259012492077465]
[143,-21.729976934507473]
[144,-15.363792825759665]
[145,-86.807501800912249]
[146,-10.827254925214675]
[147,-8.9896450491224478]
[148,-16.924783525437618]
[149,30.435108315685824]
[150,-28.765867167929848]
[151,-66.456402434153603]
[152,8.7024769969605416]
[153,-22.992498632551257]
[154,-34.425160302830292]
[155,-9.4749055696119768]
[156,-32.633968208279789]
[157,-24.733292888321703]
[158,21.191318678821546]
[159,-15.285631657096459]
[161,15.303989506790607]
[162,-22.579092991301835]
[163,36.86504365650282]
[164,-11.520436238570731]
[166,-25.487186203336204]
[167,-63.675897478774999]
[168,-74.757673427968086]
[170,-31.650132517936001]
[171,-52.785821449428731]
[172,39.285953495414432]
[176,16.913012075505833]
[177,-10.186665599950947]
[178,-49.850295450004225]
[179,28.474881691202839]
[180,-4.3504972595720375]
[182,30.051862785072402]
[184,-8.8757711349569774]
[185,21.657911475593963]
[189,0.92846158937053502]
[190,-8.6701508481620131]
[192,-32.76448583392267]
[193,-51.928048858791257]
[197,-35.215176317705442]
[198,9.3136492901599155]
[199,4.0416353366252764]
[200,14.326560090466906]
[203,37.971561593589904]
[205,-0.3765537322857142]
[209,-18.22016515181086]
[210,-21.620365601299788]
[212,-14.47317087683107]
[218,28.692297763948943]
[220,-4.8295381648538509]
[222,1.6668692908463427]
[229,-45.492024664356279]
[233,-20.714072774151738]
[240,-26.551701885973113]
[248,-40.463392981169534]
[268,-39.809449523196541]
[288,-2.6714028422833849]
[289,-18.045038654995]
[292,3.8717725530952691]
[298,8.2885786275523969]
[327,9.520023075298738]
[331,-26.157735859696512]
[353,-31.8981256329442]
[383,-28.721166274917813]
[481,-13.525234280420372]
[497,7.1643125755135095]
[533,-12.228505115525943]

{"sheet":"Equation","index":6,"n_rows":5,"n_cols":4,"rows_kept":5,"cut":false,"hidden":true,"merged":[]}
["Dummy Int",30001]
["Dummy Exp",-1.167]
[null,null,null,"y=30,001*x^-1.167"]
["where:"]
["x equals units per acre"]

{"sheet":"Guide to Product Types","index":7,"n_rows":108,"n_cols":13,"rows_kept":108,"cut":false,"hidden":false,"merged":[[79,0,83,11],[79,12,83,23],[107,0,111,11],[26,12,27,22],[26,0,27,10],[53,0,54,10],[53,12,54,22]]}
[]
["BACK TO POPULATION & PRODUCT TYPE MODEL",null,null,null,null,null,null,null,"BACK TO DENSITY COMPARISON MODEL"]
[]
[]
[]
[]
[]
[]
[]
[]
[]
[]
[]
[]
[]
[]
[]
[]
[]
[]
[]
[]
[]
[]
[]
[]
["The large single family product type consists of detached single dwelling unit parcels with parcels size greater than or equal to 10,000 square feet.",null,null,null,null,null,null,null,null,null,null,null,"The typical single family product type consists of detached single dwelling unit parcels with parcel area between 5,000 and 10,000 square feet."]
[]
[]
[]
[]
[]
[]
[]
[]
[]
[]
[]
[]
[]
[]
[]
[]
[]
[]
[]
[]
[]
[]
[]
[]
[]
[]
["The small single family product type consists of detahed single dwelling unit parcels with parcel area less than 5,000 square feet.",null,null,null,null,null,null,null,null,null,null,null,"The small multifamily product type consists of parcels with two or more attached dwelling units. These parcels do not have multiple stories of individual residential dwelling units. This product type can have many configurations but the general features are attached units that are not stacked."]
[]
[]
[]
[]
[]
[]
[]
[]
[]
[]
[]
[]
[]
[]
[]
[]
[]
[]
[]
[]
[]
[]
[]
[]
[]
["The three story walkup product type consists of parcels with attached dwelling units stacked up to three stories. This product type may consist of a single building of attached dwelling units or multiple buildings comprising an apartmet complex. This product type can have many configurations but general features are attached multifamily dwelling units, stacked up to three stories high.",null,null,null,null,null,null,null,null,null,null,null,"The mid-range multifamily product type consists of parcels with attached dwelling units stacked between four and nine stories. This product type may consist of a single building of attached dwelling units or multiple buildings comprising an apartment complex. This product type can hav many configurations but the general feature is four to nine stories of multifamily dwelling units."]
[]
[]
[]
[]
[]
[]
[]
[]
[]
[]
[]
[]
[]
[]
[]
[]
[]
[]
[]
[]
[]
[]
[]
[]
[]
[]
[]
["The high density multifamily product type consists of parcels with attached dwelling units stacked in buildings greater than nine stories. Parcels in this product type can have many configurations but typically will have a dedicated parking structure or non-surface parking. "]

{"sheet":"Guide to GPSF","index":8,"n_rows":4,"n_cols":12,"rows_kept":4,"cut":false,"hidden":false,"merged":[]}
[]
[null,null,null,null,null,null,null,null,null,null,null,"BACK TO POPULATION & PRODUCT TYPE MODEL"]
[]
[null,null,null,null,null,null,null,null,null,null,null,"BACK TO DENSITY COMPARISON MODEL"]